Cogmind - Beta 11 X6 @@@ ROGUE MODE // 2021.08.18 @ 05:27:30 Player: Warlord Bad W0 Result: Heading to fleet! Performance ------------- Evolutions (9) 4500 Regions Visited (32) 6400 Robots Destroyed (509) 2545 Value Destroyed (26870) 26870 Prototype IDs (121) 2420 Alien Tech Used (11) 2200 Bonus (17148) 17148 TOTAL SCORE: 62083 Bonus ------- High Alert Combat Kills 5049 Follower Combat Kills 2318 Network Hubs Disabled 200 Aligned with FarCom 300 Met Zhirov 300 Met Warlord at Base 500 MAIN.C Attacked Warlord 500 Warlord Defense Kill 280 Used Core Reset Matrix 3000 Met R17 at Research 2000 Met Warlord at Research 2000 Win 3000 Friendly Fire -2299 Cogmind --------- Core Integrity 1401/1600 Matter 864/925 Energy 659/680 System Corruption 12% Temperature Cool (9) Movement Treading (145) Location To Fleet Rendezvous Parts ------- > --- POWER (2) -------- Light Quantum Reactor Light Quantum Reactor > --- PROPULSION (6) --- Biometal Heavy Treads Biometal Heavy Treads Biometal Heavy Treads > --- UTILITY (12) ----- Advanced Heat Sink Huge Storage Unit Improved Energy Well Experimental Matter Compressor Advanced Target Analyzer SHELL Armor EM Dispersion Field Experimental Force Field Matter Drive > --- WEAPON (6) ------- Hypervelocity Multirail Compact Mass Driver Compact Mass Driver Compact Mass Driver Compact Mass Driver Power Sword > --- INVENTORY (25) --- Light Quantum Reactor Biometal Heavy Treads Biometal Heavy Treads Biometal Heavy Treads Biometal Heavy Treads Experimental Matter Compressor (500) Advanced Weight Redist. System Precision Matter Filter Precision Matter Filter Hacking Suite Long-range Tractor Beam Phasing AFG High-powered Transdimensional Reconstructor Improved Potential Cannon Compact Mass Driver Compact Mass Driver Compact Mass Driver Vortex Catalyst Activator (2) Peak State ------------ > --- POWER ------------ Vortex Chain Reactor > --- PROPULSION ------- High-density Centrium Heavy Treads High-density Centrium Heavy Treads High-density Centrium Heavy Treads > --- UTILITY ---------- Huge Storage Unit Improved Energy Well SHELL Armor Experimental Force Field Matter Drive Matter Drive > --- WEAPON ----------- Phase Gun Hypervelocity Multirail Compact Mass Driver Compact Mass Driver Compact Mass Driver Compact Mass Driver > --- INVENTORY -------- Vortex Chain Reactor Experimental Matter Compressor Experimental Matter Compressor Advanced Weight Redist. System Long-range Terrain Scanner Experimental Terrain Scan Processor Precision Matter Filter Precision Matter Filter EM Dispersion Field Long-range Tractor Beam Phasing AFG High-powered Transdimensional Reconstructor Improved Potential Cannon Compact Mass Driver Compact Mass Driver Compact Mass Driver Vortex Catalyst Activator [Rating: 258] Favorites ----------- Power Cold Fusion Reactor Engine Light Ion Engine Power Core Micro Fission Core Reactor Cold Fusion Reactor Propulsion Armored Medium Treads Treads Armored Medium Treads Leg Biometal Leg Wheel Armored Huge Wheel Hover Unit Cooled Aerolev Unit Flight Unit Improved VTOL Module Utility Weapon Cycler Device Weapon Cycler Storage Humpback Processor Experimental Terrain Scan Processor Hackware Hacking Suite Protection Centrium Medium Armor Plating Artifact Matter Drive Weapon Compact Mass Driver Energy Gun Advanced Beam Rifle Energy Cannon Cooled Plasma Cannon Ballistic Gun Improved KE Penetrator Ballistic Cannon Compact Mass Driver Launcher Grenade Launcher Impact Weapon Core Stripper Slashing Weapon Power Sword Special Melee Weapon Advanced Datajack Build | -11 -10 -10 -10 -9 -8 -8 -7 -7 -7 -7 -6 -6 -6 -6 -6 -6 -5 -5 -5 -5 -4 -4 -4 -4 -4 -3 -3 -3 -2 -2 -2 -1 ------- Run | Scr Mat Min Exi Min Mat Sto Fac Low Low Zio Pro Fac Ext Cet Arc Hub Fac Upp Upp Zhi Pro Fac Upp Upp War Pro Res Qua Res Tes Sec Acc Slots Evolved 18 | . . . . . 4 . 2 . . . . 2 . . . . 2 . . . . 2 . . . . 2 . 2 . . 2 Power 1 | . . . . . . . . . . . . . . . . . 1 . . . . . . . . . . . . . . . Propulsion 4 | . . . . . . . . . . . . 2 . . . . . . . . . 2 . . . . . . . . . . Utility 10 | . . . . . 4 . 2 . . . . . . . . . 1 . . . . . . . . . 1 . . . . 2 Weapon 3 | . . . . . . . . . . . . . . . . . . . . . . . . . . . 1 . 2 . . . Parts Attached 677 | 7 32 4 4 1 54 27 35 4 9 . 9 21 15 20 11 22 36 1 8 8 4 43 3 18 19 10 11 23 27 62 59 70 Power 30 | 1 1 . . . 3 2 1 . 3 . . . . 2 . . 3 . 2 . 1 2 . . 1 . . . . 4 . 4 Engine 6 | 1 1 . . . 2 2 . . . . . . . . . . . . . . . . . . . . . . . . . . Core 8 | . . . . . 1 . . . . . . . . . . . 1 . 2 . 1 2 . . . . . . . 1 . . Reactor 16 | . . . . . . . 1 . 3 . . . . 2 . . 2 . . . . . . . 1 . . . . 3 . 4 Propulsion 120 | 2 8 . . . 13 9 3 . 1 . . 4 5 3 2 2 3 . 2 4 . 16 . . 5 . 1 8 10 5 . 14 Treads 64 | 2 4 . . . 8 4 . . . . . 1 1 2 1 . 3 . . 2 . 4 . . 5 . 1 8 10 3 . 5 Leg 10 | . . . . . . . . . . . . . 1 . . . . . . . . 2 . . . . . . . . . 7 Wheel 41 | . 4 . . . 5 3 2 . 1 . . 3 2 1 1 2 . . 2 1 . 10 . . . . . . . 2 . 2 Hover 2 | . . . . . . . 1 . . . . . . . . . . . . 1 . . . . . . . . . . . . Flight 3 | . . . . . . 2 . . . . . . 1 . . . . . . . . . . . . . . . . . . . Utility 332 | 2 9 . 1 . 13 8 23 . 1 . 7 17 9 7 5 13 25 . 4 2 3 21 1 15 9 6 6 10 14 28 34 39 Device 195 | 2 4 . . . 5 3 16 . 1 . 4 13 8 1 5 3 16 . 3 . 2 10 1 7 8 6 3 4 10 14 17 29 Storage 41 | . 4 . 1 . 5 3 2 . . . 1 . . 1 . . 2 . . 1 . 1 . . 1 . . 1 1 5 8 4 Processor 14 | . . . . . . . . . . . . . . . . . 2 . . . . 2 . 2 . . 1 . 1 3 1 2 Hackware 28 | . . . . . 1 2 . . . . . 3 1 . . 7 2 . . . 1 1 . 1 . . 2 . . 2 3 2 Protection 46 | . 1 . . . 2 . 5 . . . 2 1 . 5 . 3 3 . 1 1 . 7 . 5 . . . 4 2 4 . . Artifact 8 | . . . . . . . . . . . . . . . . . . . . . . . . . . . . 1 . . 5 2 Weapon 195 | 2 14 4 3 1 25 8 8 4 4 . 2 . 1 8 4 7 5 1 . 2 . 4 2 3 4 4 4 5 3 25 25 13 Energy Gun 33 | . 2 2 . . 17 1 2 . . . . . . . . . . . . . . . . . 4 1 1 1 . 1 1 . Energy Cannon 16 | . . . . . 1 1 2 . . . . . . . . 1 . . . 1 . 1 . . . . 2 4 1 1 1 . Ballistic Gun 41 | 2 3 . . . 6 . . . . . . . . 3 2 2 2 . . . . . . . . . . . . 8 7 6 Ballistic Cannon 64 | . . . . . . 3 3 2 2 . 2 . 1 2 1 4 2 1 . 1 . 2 2 2 . . 1 . 2 12 14 5 Launcher 35 | . 9 2 3 1 1 3 . 2 2 . . . . 3 . . 1 . . . . 1 . 1 . 3 . . . . 2 1 Special Weapon . | . . . . . . . . . . . . . . . . . . . . . . . . . . . . . . . . . Impact Weapon 3 | . . . . . . . . . . . . . . . . . . . . . . . . . . . . . . 3 . . Slashing Weapon 2 | . . . . . . . 1 . . . . . . . . . . . . . . . . . . . . . . . . 1 Piercing Weapon . | . . . . . . . . . . . . . . . . . . . . . . . . . . . . . . . . . Special Melee Weapon 1 | . . . . . . . . . . . . . . . 1 . . . . . . . . . . . . . . . . . Unidentified Prototypes 58 | . . . . . 4 4 8 . . . . . 1 3 . . . . . 4 . 2 . 1 6 . 2 3 3 11 4 2 Corrupted Parts 13 | . . . . . . 2 2 . . . 1 . . 1 . . 1 . . . 1 1 . . 1 . . 3 . . . . System Corruption 78 | . . . . . . 17 20 . . . 10 . . 4 . . 7 . . . 10 1 . . 2 . . 7 . . . . Parts Lost 52 | . 2 . . . 4 7 2 . . . . 1 1 . . 4 3 . . . . 6 . . 2 . . . . 7 4 9 Power 6 | . . . . . 2 2 . . . . . . . . . . . . . . . . . . . . . . . 1 . 1 Propulsion 17 | . . . . . 1 1 . . . . . 1 1 . . 1 1 . . . . 6 . . . . . . . 3 . 2 Utility 27 | . 2 . . . 1 3 2 . . . . . . . . 3 2 . . . . . . . 1 . . . . 3 4 6 Weapon 2 | . . . . . . 1 . . . . . . . . . . . . . . . . . . 1 . . . . . . . Highest Loss Streak 6 | . 1 . . . 1 6 1 . . . . 1 1 . . 3 2 . . . . 2 . . 2 . . . . 2 2 3 Average Slot Usage (%) 76 | . 99 100 82 85 88 89 83 33 31 30 30 77 78 74 67 77 82 79 86 77 81 81 78 82 81 87 79 84 77 74 68 74 Engine 3 | . 14 14 14 14 7 8 5 . . . . . . . . . . . . . . . . . . . . . . . . . Core 1 | . . . . . . . . . . . . . . . . . 3 5 7 11 10 10 10 10 6 . . . . . . . Reactor 3 | . . . . . . . 1 7 6 7 7 6 6 6 6 6 7 5 3 . . . . . 1 5 4 4 4 5 4 5 Treads 9 | . 14 . . . 12 16 . . . . . 6 4 4 12 4 6 11 5 8 11 6 15 15 17 31 28 27 16 11 12 7 Wheel 6 | . 13 28 28 28 5 1 8 7 7 7 7 11 12 8 . 8 3 . 9 4 . 10 5 5 4 . . . . 1 . . Device 14 | . 10 . . . 14 17 25 7 6 7 7 17 28 23 25 18 26 23 23 23 23 11 8 9 13 14 14 13 18 7 4 12 Storage 9 | . 10 14 13 14 24 12 10 7 7 7 7 6 6 6 6 6 5 5 5 5 5 7 5 5 5 10 4 4 4 5 5 11 Processor 2 | . . . . . . . . . . . . . . . . . 2 11 11 6 5 5 10 19 13 10 10 9 6 9 4 2 Hackware 4 | . . . . . . 13 10 . . . . 15 6 . . 10 11 5 5 5 5 14 15 5 . . 4 . . 5 9 1 Protection 4 | . 6 14 2 . 4 . 5 . . . . 6 3 15 13 9 3 5 4 8 11 5 6 5 11 5 4 8 8 5 4 3 Energy Gun 2 | . 8 1 . . 15 . . . . . . . . . . . . . . . . . . . 5 7 1 1 4 . . . Energy Cannon 1 | . . . . . . 3 5 . . . . . . . . . . . . . . . . . . . 4 12 8 . . . Ballistic Gun 1 | . 8 . . . 1 . . . . . . . . 4 1 9 1 . . . . . . . . . . . . . . 3 Ballistic Cannon 4 | . . . . . . 13 6 2 . . . 6 6 3 . . 3 2 5 . 5 4 . 3 . . . . 5 16 18 12 Launcher 2 | . 11 26 22 28 . . . . . . . . . . . . . . . . . . . . . 1 . . . . . . Naked Turns . | . . . . . . . . . . . . . . . . . . . . . . . . . . . . . . . . . Heaviest Build 307 | 9 90 90 209 210 229 233 307 307 307 292 307 238 237 254 256 256 142 126 126 120 120 124 124 130 175 155 161 183 179 191 219 215 Greatest Support 270 | 40 40 26 26 26 43 40 37 28 28 28 37 44 56 160 160 48 160 160 80 150 150 235 182 182 209 162 162 180 220 270 270 270 Greatest Overweight (x) 80 | 1 8 3 8 8 14 22 10 10 10 10 10 8 78 8 80 9 3 . 4 6 . 11 . . 1 . . 1 1 16 . 12 Average Overweight (x) 3 | . 2 3 6 8 5 6 6 10 9 10 9 5 6 3 12 7 2 . 3 1 . 3 . . . . . . . . . . Largest Inventory Capacity 35 | 5 25 25 35 35 35 35 35 35 35 35 35 35 35 35 35 35 35 25 25 25 25 25 25 25 25 25 25 25 25 25 25 25 Average Capacity 29 | 5 13 25 32 35 35 35 35 35 35 35 35 35 35 35 35 35 25 25 25 25 25 25 25 25 25 25 25 25 25 25 25 25 Most Carried 35 | 5 25 25 35 35 35 35 35 34 35 35 35 35 35 35 35 35 31 24 25 25 25 25 25 25 25 24 25 25 25 25 25 25 Average Carried 28 | 1 11 24 28 34 33 33 33 33 33 34 34 31 32 33 32 32 22 22 21 24 24 23 24 23 24 22 23 24 24 23 23 23 Final Capacity 35 | 5 25 25 35 35 35 35 35 35 35 35 35 35 35 35 35 35 25 25 25 25 25 25 25 25 25 25 25 25 25 25 25 25 Final Carried 35 | 4 24 25 35 35 35 35 32 32 35 35 27 35 35 33 35 31 21 22 23 23 25 24 23 25 25 24 25 25 25 25 22 24 Class Distribution -------------------- 52% | Hauler-Mutant 15% | Mutant 12% | Scavenger-Mutant 8% | Hacker-Mutant 4% | Alien-Mutant Dominant Class ---------------- Mutant | -10/Materials Mutant | -10/Mines Hauler-Mutant | -10/Exiles Hauler-Mutant | -9/Mines Hauler-Mutant | -8/Materials Hauler-Mutant | -8/Storage Hauler-Mutant | -7/Factory Hauler-Mutant | -7/Lower Caves Hauler-Mutant | -7/Lower Caves Hauler-Mutant | -7/Zion Hauler-Mutant | -6/Proximity Caves Hauler-Mutant | -6/Factory Hauler-Mutant | -6/Extension Hauler-Mutant | -6/Cetus Hauler-Mutant | -6/Archives Hauler-Mutant | -6/Hub_04(d) Hacker-Mutant | -5/Factory Scavenger-Mutant | -5/Upper Caves Scavenger-Mutant | -5/Upper Caves Scavenger-Mutant | -5/Zhirov Scavenger-Mutant | -4/Proximity Caves Hacker-Mutant | -4/Factory Hacker-Mutant | -4/Upper Caves Mutant | -4/Upper Caves Mutant | -4/Warlord Scavenger-Mutant | -3/Proximity Caves Scavenger-Mutant | -3/Research Scavenger-Mutant | -3/Quarantine Mutant | -2/Research Hacker-Gunner | -2/Testing Alien-Mutant | -2/Section 7 Alien-Mutant | -1/Access Resources | -11 -10 -10 -10 -9 -8 -8 -7 -7 -7 -7 -6 -6 -6 -6 -6 -6 -5 -5 -5 -5 -4 -4 -4 -4 -4 -3 -3 -3 -2 -2 -2 -1 ----------- Run | Scr Mat Min Exi Min Mat Sto Fac Low Low Zio Pro Fac Ext Cet Arc Hub Fac Upp Upp Zhi Pro Fac Upp Upp War Pro Res Qua Res Tes Sec Acc Matter Collected 19429 | 330 776 100 20 80 662 951 891 222 220 74 74 875 787 462 710 467 795 150 83 102 320 1030 165 358 180 136 105 1124 416 1823 2192 2749 Remotely 4959 | 231 225 . . . . . 92 . . . . 477 226 . 346 . 360 . . . 94 224 . 67 . . . . . 1067 1188 362 Salvage Created 23761 | 127 880 173 . 5 2351 1140 793 251 254 . 153 950 718 708 374 663 1154 343 . 102 47 1338 57 632 94 396 319 826 364 2063 1675 4811 Parts 1071 | 8 52 7 . 1 111 58 52 13 8 . 5 34 17 31 22 52 58 5 1 2 . 43 3 18 3 18 9 71 15 76 48 230 Haulers Intercepted 21 | . 2 . . . 6 5 . . . . . 1 . . . . 2 . . . . . . 1 . . 1 . . . . 3 Recyclers Shooed 9 | . 2 . . . 2 . . . . . . 3 . . . . 1 . . . . . . . . . . . . . . 1 Parts Field Recycled . | . . . . . . . . . . . . . . . . . . . . . . . . . . . . . . . . . Retrieved Matter . | . . . . . . . . . . . . . . . . . . . . . . . . . . . . . . . . . Parts Self-Destructed 121 | . . . . . . . . 5 12 2 21 . . . . . . 5 . 1 . . 3 9 55 8 . . . . . . Prevented 26 | . . . . . . . . 4 3 . . . . . . . . . . . . . . 10 1 8 . . . . . . Kills | -11 -10 -10 -10 -9 -8 -8 -7 -7 -7 -7 -6 -6 -6 -6 -6 -6 -5 -5 -5 -5 -4 -4 -4 -4 -4 -3 -3 -3 -2 -2 -2 -1 ------- Run | Scr Mat Min Exi Min Mat Sto Fac Low Low Zio Pro Fac Ext Cet Arc Hub Fac Upp Upp Zhi Pro Fac Upp Upp War Pro Res Qua Res Tes Sec Acc Combat Hostiles Destroyed 400 | . 20 4 . 2 35 13 19 6 7 . 4 17 18 12 4 12 18 8 2 . 3 31 3 13 2 13 3 11 7 29 27 57 Melee 1 | . . . . . . . . . . . . . . . . . . . . . . . . . . . 1 . . . . . Guns 146 | . 6 . . . 28 1 . . . . . . . 4 . 10 2 . . . . . . . 2 5 . . 2 15 19 52 Cannons 157 | . . . . . . 8 18 2 5 . 4 15 18 4 4 2 12 8 2 . 3 25 3 7 . . 1 2 . 10 4 . AOE 64 | . 14 4 . 2 4 4 . 4 2 . . 2 . 1 . . 1 . . . . 5 . . . 8 . . 2 2 4 5 Classes Destroyed 24 | 2 6 . . . 3 3 2 1 1 . . . . . . . . . 2 . . . . . . . . . . 4 . . Worker 20 | . 1 . . . 3 3 2 . . . . 3 . . . 2 . . . . . 3 . . . . 1 . . 1 . 1 Builder 8 | . . . . . . 1 2 . . . . . . . . 1 . . . . . . . . . . . . . 3 1 . Tunneler 4 | 3 . . . . 1 . . . . . . . . . . . . . . . . . . . . . . . . . . . Hauler 21 | . 2 . . . 6 5 . . . . . 1 . . . . 2 . . . . . . 1 . . 1 . . . . 3 Recycler 27 | 1 4 . . . 5 3 2 . . . . 5 . . . . 2 . . . . 2 . . . . . . . . . 3 Minesweeper 1 | . . . . . . . . . . . . . . . . . . . 1 . . . . . . . . . . . . . Mechanic 2 | . . . . . . 1 . . 1 . . . . . . . . . . . . . . . . . . . . . . . Operator 11 | . 1 . . . . . 1 . . . . . . . 6 1 . . . . . . . . . . . . . . 1 1 Watcher 18 | . 2 . . . 3 2 1 . . . . . 3 . . 1 1 . . . . . . . . . . . . 2 3 . Swarmer 69 | . 6 3 . 2 8 . 2 1 1 . . 11 . . . 2 4 . . . . 4 . 3 . 13 . . 4 . . 5 Saboteur 2 | . . . . . . . . . . . . . . . . . . . . . . . . . . . . . . 1 . 1 Grunt 152 | . 14 1 . . 20 7 4 2 2 . 3 2 14 8 . 4 . 8 . . . 9 . 6 2 . 1 . . 7 12 26 Brawler 9 | . . . . . . . . . 2 . 1 . . . . . 1 . . . . . . . . . . . . 1 3 1 Duelist 8 | . . . . . 1 . . 1 1 . . . . . . . 1 . . . . . . . . . . . . 3 1 . Protector 1 | . . . . . . . . . . . . . . . . . . . . . . . . . . . . . . 1 . . Researcher 1 | . . . . . . . . . . . . . . . . . . . . . . . . . . . . . . 1 . . Sentry 34 | . . . . . 4 4 2 1 1 . . . 4 . 4 3 . . . . . 3 . 1 . . . . 1 . 2 4 Specialist 3 | . . . . . . . 1 . . . . . . . . . 2 . . . . . . . . . . . . . . . Hunter 45 | . . . . . 2 1 5 . . . . 2 . . . 1 5 . . . 2 4 . . . . 2 . 2 5 7 7 Programmer 51 | . . . . . . . 5 . . . . 2 . . . 2 5 . . . 1 11 2 . . . . 1 . 8 1 13 Heavy 1 | . . . . . . 1 . . . . . . . . . . . . . . . . . . . . . . . . . . Behemoth 1 | . . . . . . . . 1 . . . . . . . . . . . . . . . . . . . . . . . . Cetus Guard 4 | . . . . . . . . . . . . . . 4 . . . . . . . . . . . . . . . . . . Quarantine Guard 10 | . . . . . . . . . . . . . . . . . . . . . . . . . . . . 10 . . . . S7 Guard 1 | . . . . . . . . . . . . . . . . . . . . . . . . . . . . . . . 1 . Fortress 1 | . . . . . . . . . . . . . . . . . . . . . . . . . . . . . . 1 . . Protovariant X 1 | . . . . . . . . . . . . . . . . . . . . . . . . . . . . . . 1 . . Master Thief 6 | . . . . . . . . . . . . . . . . . . . 2 . . . 1 3 . . . . . . . . Guerrilla 1 | . . . . . . . . . . . . . . . . . . . . . . . . . . . . . . 1 . . Best Kill Streak 15 | 3 4 3 . 2 4 6 4 4 3 . 4 5 15 4 7 3 9 5 2 . 2 7 2 5 2 5 1 3 4 5 10 9 Combat Bots Only 14 | . 3 3 . 2 4 3 2 4 3 . 4 5 14 4 2 3 9 5 2 . 2 7 2 5 2 5 1 3 4 5 9 9 Max Kills in Single Turn 4 | 1 3 3 . 1 3 4 1 2 3 . 1 2 2 2 1 2 3 2 1 . 1 2 1 3 1 3 1 1 2 2 4 4 Gunslinging 1 | . . . . . 1 . . . . . . . . . . . . . . . . . . . . . . . . . . . Exploded 4 | . 2 3 . 1 3 2 . 2 2 . . 2 . 1 . . 1 . . . . 2 . . . 3 . . 2 1 3 4 Melee 1 | . . . . . . . . . . . . . . . . . . . . . . . . . . . 1 . . . . . Uniques/NPCs Destroyed 2 | . . 1 . . . . . . . . . . . 1 . . . . . . . . . . . . . . . . . . YI-UF0 (-10/Mines) A7 (-6/Cetus) Combat | -11 -10 -10 -10 -9 -8 -8 -7 -7 -7 -7 -6 -6 -6 -6 -6 -6 -5 -5 -5 -5 -4 -4 -4 -4 -4 -3 -3 -3 -2 -2 -2 -1 -------- Run | Scr Mat Min Exi Min Mat Sto Fac Low Low Zio Pro Fac Ext Cet Arc Hub Fac Upp Upp Zhi Pro Fac Upp Upp War Pro Res Qua Res Tes Sec Acc Damage Taken 30378 | . 276 39 . 76 1534 1354 1116 264 274 . 222 701 517 1226 190 1453 1174 263 41 . 343 2192 341 751 672 658 250 1174 245 4032 5311 3689 Core 2010 | . 32 15 . 15 168 77 97 56 30 . 61 51 59 163 . 151 126 39 . . 18 41 20 50 51 21 . 40 17 25 388 199 Absorbed by Shields 5576 | . . . . . . . 232 . . . . 81 200 307 67 349 144 . . . . . . 20 148 . . . . . 3312 716 Reduced by Siege Mode 1011 | . . . . . . . . . . . . . . 54 20 27 45 16 8 . 20 99 11 47 . . . . . 320 245 99 Core Remaining (%) 74 | 100 . . . 75 . 55 . . . . 65 . . . . 50 . . . . 81 . . . . 84 . 96 . . 56 87 Volleys Fired 1374 | 10 68 8 . 2 147 66 85 8 12 . 8 63 65 39 36 38 50 23 19 2 16 85 10 20 17 16 14 68 44 96 91 148 Largest 6 | 2 2 2 . 2 2 2 2 2 2 . 1 1 1 2 2 2 2 1 1 1 1 1 1 1 2 2 1 2 1 5 6 5 Hottest 396 | 40 90 90 . 60 122 117 83 72 72 . 60 60 60 70 70 70 70 60 60 35 60 60 60 60 90 85 94 129 88 330 396 314 Shots Fired 2034 | 20 125 16 . 4 291 129 152 12 13 . 8 63 65 54 54 69 54 26 19 1 17 85 10 22 19 20 14 70 44 189 193 176 Gun 854 | 20 98 12 . . 288 22 . . . . . . . 31 36 62 11 . . . . . . . 19 11 . 3 28 60 45 108 Cannon 1097 | . . . . . 1 99 152 8 11 . 8 63 65 18 18 7 39 26 19 1 17 80 10 19 . . 14 67 16 129 144 66 Launcher 83 | . 27 4 . 4 2 8 . 4 2 . . . . 5 . . 4 . . . . 5 . 3 . 9 . . . . 4 2 Special . | . . . . . . . . . . . . . . . . . . . . . . . . . . . . . . . . . Kinetic 1343 | 20 72 . . . 28 63 85 8 11 . 8 63 65 49 54 68 50 26 19 . 17 80 10 19 . . . . . 166 188 174 Thermal 413 | . . . . . 243 58 67 . . . . . . . . 1 . . . 1 . . . . . . 2 28 . 12 1 . Explosive 37 | . 27 4 . 4 2 . . . . . . . . . . . . . . . . . . . . . . . . . . . Electromagnetic 164 | . 26 12 . . 18 8 . 4 2 . . . . 5 . . 4 . . . . 5 . 3 . 9 12 39 16 1 . . Entropic 77 | . . . . . . . . . . . . . . . . . . . . . . . . . 19 11 . 3 28 10 4 2 Robot Hit Streak 48 | 11 16 8 . . 11 15 9 9 5 . 15 13 17 9 11 15 11 12 8 9 12 26 6 17 14 15 4 18 13 25 22 48 Robot Miss Streak 9 | 1 5 1 . 3 6 3 9 5 2 . 2 4 5 3 4 2 3 2 2 . 4 7 2 3 1 2 1 2 6 5 3 4 Penetration Max 2 | . . . . . . . . . . . . . . 1 1 1 . . . . . . . . . 1 . . . 2 2 2 Secondary Targets 5 | . . . . . 2 . . . . . . . . 1 . 2 . . . . . . . . . . . . . . . . Max Gunslinging Chain 1 | . . . . . 1 . . . . . . . . 1 . 1 . . . . . . . . . . . . . . . . Capacitor 171 | . . . . . . . . . . . . . . . . . . . . . . . . . 15 9 14 66 44 23 . . Shots Hit Robots 1284 | 17 68 10 . . 162 75 94 7 11 . 8 54 37 45 44 43 49 22 18 1 14 77 10 17 13 13 5 48 13 116 87 106 Core Hits 893 | 5 50 7 . 2 76 31 36 13 12 . 9 38 49 31 29 25 39 19 7 1 9 76 7 16 5 20 3 18 11 72 70 107 Critical Kills 112 | . . . . . . 1 1 . . . . . . 3 . 6 1 . . . . . . . . . . 1 . 19 20 60 Critical Parts Destroyed 157 | . . . . . . . . . . . . . . 2 3 2 . . . . . . . . . . . . . 42 41 67 Critical Strikes 354 | . . . . . 21 2 5 . . . . 3 5 6 4 8 6 3 . . . 15 . 4 . . . 2 1 70 69 130 Burn 20 | . . . . . 20 . . . . . . . . . . . . . . . . . . . . . . . . . . . Meltdown 3 | . . . . . . 1 1 . . . . . . . . . . . . . . . . . . . . 1 . . . . Destroy 268 | . . . . . . . . . . . . . . 5 3 8 1 . . . . . . . . . . . . 59 63 129 Blast 58 | . . . . . . 1 4 . . . . 3 5 1 1 . 5 3 . . . 15 . 4 . . . . . 9 6 1 Corrupt 3 | . . . . . 1 . . . . . . . . . . . . . . . . . . . . . . 1 1 . . . Detonate 2 | . . . . . . . . . . . . . . . . . . . . . . . . . . . . . . 2 . . Melee Attacks 9 | . . . . . . . . . . . . . . . 1 . . . . . . . . . . . . . . 2 . 6 Kinetic 2 | . . . . . . . . . . . . . . . . . . . . . . . . . . . . . . 2 . . Impact . | . . . . . . . . . . . . . . . . . . . . . . . . . . . . . . . . . Slashing 6 | . . . . . . . . . . . . . . . . . . . . . . . . . . . . . . . . 6 Piercing . | . . . . . . . . . . . . . . . . . . . . . . . . . . . . . . . . . Sneak Attacks 1 | . . . . . . . . . . . . . . . 1 . . . . . . . . . . . . . . . . . Combat Hostiles . | . . . . . . . . . . . . . . . . . . . . . . . . . . . . . . . . . Follow-up Attacks . | . . . . . . . . . . . . . . . . . . . . . . . . . . . . . . . . . Damage Inflicted 55662 | 224 1875 363 . 183 3620 2572 3066 549 682 . 401 3124 3489 2200 1711 1320 2910 1250 1012 37 719 6076 633 1293 659 909 493 1736 763 5106 4171 2516 Guns 11658 | 224 830 130 . . 3299 330 . . . . . . . 649 677 1127 276 . . . . . . . 659 446 . . 67 858 713 1373 Cannons 33111 | . . . . . . 1557 3066 315 483 . 401 2691 3489 1091 1034 193 2041 1250 1012 37 719 4924 620 777 . . 422 1666 419 3264 1533 107 Explosions 10558 | . 1045 233 . 183 287 661 . 234 199 . . 433 . 460 . . 593 . . . . 1152 . 516 . 463 . 70 277 862 1925 965 Melee 43 | . . . . . . . . . . . . . . . . . . . . . . . . . . . . . . 43 . . Ramming 292 | . . . . . 34 24 . . . . . . . . . . . . . . . . 13 . . . 71 . . 79 . 71 Kinetic 34588 | 224 682 . . . 257 690 1706 315 483 . 401 2691 3489 1740 1711 1320 2317 1250 1012 . 719 4924 620 777 . . . . . 3534 2246 1480 Thermal 8661 | . 38 . . . 2855 1381 1360 59 104 . . 433 . . . . . . . 37 . 509 . . . . 68 616 72 1129 . . Explosive 2082 | . 1007 233 . 183 287 . . . . . . . . . . . . . . . . 167 . . . . . . 205 . . . Electromagnetic 5745 | . 148 130 . . 187 477 . 175 95 . . . . 460 . . 593 . . . . 476 . 516 . 463 354 1120 419 132 . . Impact . | . . . . . . . . . . . . . . . . . . . . . . . . . . . . . . . . . Slashing . | . . . . . . . . . . . . . . . . . . . . . . . . . . . . . . . . . Piercing . | . . . . . . . . . . . . . . . . . . . . . . . . . . . . . . . . . Entropic 4294 | . . . . . . . . . . . . . . . . . . . . . . . . . 659 446 . . 67 232 1925 965 Highest Corruption 32 | . . . . . 3 20 23 23 23 23 10 . . 4 4 . 21 21 21 21 32 9 12 16 8 4 . 6 . 6 13 12 Average Corruption 13 | . . . . . 2 19 13 23 23 23 10 . . 4 3 . 10 21 21 21 21 5 11 13 4 2 . 3 . 3 5 9 Corruption Purged 28 | . . . . . . . . . . . . . . . 4 . . . . . . . . 9 1 . . 4 . 7 3 . Effects 603 | . . . . . 6 158 26 45 38 9 . . . 5 6 . 42 32 20 12 26 29 14 30 3 7 . 10 . 14 19 52 Message Errors 157 | . . . . . 1 38 9 11 11 3 . . . 2 1 . 12 8 3 4 7 8 5 8 1 4 . 1 . 6 3 11 Matter Fused 142 | . . . . . 4 41 5 9 8 3 . . . 1 3 . 9 6 5 3 5 10 2 6 . . . 4 . 2 2 14 Heat Flow Errors 81 | . . . . . . 24 4 7 . 1 . . . 2 . . 4 4 6 2 4 4 2 6 . . . 1 . 1 4 5 Energy Discharges 65 | . . . . . 1 22 4 2 3 . . . . . 2 . 4 4 1 . 2 4 1 1 . 2 . 2 . 2 3 5 Parts Rejected 8 | . . . . . . 2 . . 3 . . . . . . . 1 . . . 1 . . . . . . . . . . 1 Data Loss (minor) 68 | . . . . . . 10 . 10 8 1 . . . . . . 7 2 1 1 2 3 3 6 2 1 . 2 . 1 3 5 Data Loss (major) 26 | . . . . . . 6 1 2 1 . . . . . . . 2 3 2 . 2 . . 1 . . . . . . 2 4 Misfires 25 | . . . . . . 8 1 3 1 . . . . . . . . 4 1 . 2 . . 2 . . . . . 1 . 2 Alerts 6 | . . . . . . 1 . . . 1 . . . . . . 1 . . 1 . . 1 . . . . . . . 1 . Misdirections 3 | . . . . . . . . . 2 . . . . . . . . . . . . . . . . . . . . . . 1 Weapon Failures 22 | . . . . . . 6 2 1 1 . . . . . . . 2 1 1 1 1 . . . . . . . . 1 1 4 Overload Shots 6 | . . . . . . . . . . . . . . . . . . . . . . . . . . . . . . 6 . . Overflow Damage 1136 | . 8 . . 2 24 97 137 . 41 . . 166 53 11 3 . 64 10 66 . 37 95 29 49 . . 7 2 2 49 84 100 Projectiles 837 | . . . . . . 80 137 . 41 . . 51 53 9 3 . 64 10 66 . 37 95 29 49 . . . 2 . 8 70 33 Explosions 264 | . 8 . . 2 24 17 . . . . . 115 . 2 . . . . . . . . . . . . . . 2 22 14 58 Melee 35 | . . . . . . . . . . . . . . . . . . . . . . . . . . . 7 . . 19 . 9 Knockbacks 228 | . . . . . . 4 16 . 2 . 1 30 17 14 1 1 11 6 8 . 3 40 13 10 . . 1 . . 33 14 3 Impact 2 | . . . . . . . . . . . . . . . . . . . . . . . . . . . 1 . . . . 1 Kinetic 210 | . . . . . . 4 14 . 2 . 1 30 13 10 1 1 11 6 8 . 3 40 12 10 . . . . . 30 12 2 Secondary 16 | . . . . . . . 2 . . . . . 4 4 . . . . . . . . 1 . . . . . . 3 2 . Self-Inflicted Damage 1290 | . 33 . . 38 56 . . 53 . . . 91 . . . . . . . . . 90 . 81 . 203 . . . . 558 87 Shots 30 | . 2 . . 2 2 . . 4 . . . 2 . . . . . . . . . 1 . 3 . 9 . . . . 4 1 Rammed 13 | . . . . . 5 . . . . . . . . . . . . . . . . . 1 . . . 3 . . 2 . 2 Targets Rammed 16 | . . . . . 5 2 . . . . . . . . . . . . . . . . 1 . . . 4 . . 2 . 2 Kicked . | . . . . . . . . . . . . . . . . . . . . . . . . . . . . . . . . . Crushed 3 | . . . . . . 2 . . . . . . . . . . . . . . . . . . . . 1 . . . . . Highest Temperature 474 | . 90 180 . . 74 474 215 235 . 114 5 123 197 193 196 140 210 198 177 195 190 277 223 178 45 . 269 288 95 390 461 218 Average Temperature 82 | . 30 85 . . 21 87 37 100 . 63 3 46 93 94 110 42 54 70 74 81 76 75 71 54 24 . 127 114 46 157 144 56 Received Heat Transfer 4208 | . 105 21 . . 693 432 195 30 39 . 18 18 185 366 30 448 . 144 . . . 233 . 69 47 . 9 . . 378 439 309 Effects 4 | . . . . . . 1 . . . . . . . . . . . . . . . . . . . . . 1 . . 2 . Shutdowns 2 | . . . . . . 1 . . . . . . . . . . . . . . . . . . . . . . . . 1 . Interference 1 | . . . . . . . . . . . . . . . . . . . . . . . . . . . . 1 . . . . Short Circuit 1 | . . . . . . . . . . . . . . . . . . . . . . . . . . . . . . . 1 . Siege Activations 70 | . . . . . . . . . . . . . . 2 3 4 7 2 1 . 2 11 1 4 . . . . 2 13 9 9 Total Turns 1502 | . . . . . . . . . . . . . . 35 101 89 212 14 20 . 24 329 13 24 . . . . 3 238 202 198 Longest Duration 233 | . . . . . . . . . . . . . . 26 64 48 66 10 20 . 18 233 13 10 . . . . 2 86 54 100 Robots Corrupted 24 | . . 1 . . . . . . . . . . . 3 . . 3 . . . . 1 . 4 . . 1 8 3 . . . Combat Hostiles 23 | . . . . . . . . . . . . . . 3 . . 3 . . . . 1 . 4 . . 1 8 3 . . . Parts Fried 51 | . . . . . 1 . . 1 . . . . . 4 . . 9 . . . . 1 . 6 . 5 1 20 3 . . . Impact Corruptions 6 | . . . . . . . . . . . . . . . . . . . . . . . . . . . 1 . . 2 2 1 Robots Melted 7 | . . . . . 3 1 1 . . . . . . . . . . . . . . . . . . . . 1 . 1 . . Combat Hostiles 6 | . . . . . 3 . 1 . . . . . . . . . . . . . . . . . . . . 1 . 1 . . Parts Melted 19 | . . . . . 6 2 2 . . . . . . . . . . . . . . 1 . . . . 1 3 . 4 . . Heat Transferred 13774 | . 50 . . . 6993 2216 1875 100 100 . . 250 . . . . . . . 50 . 300 . . . . 100 800 50 890 . . Parts Sabotaged 3 | . . . . . . . . . . . . . . . . . 2 . . . . . . . . . . . . . . 1 Parts Stolen 3 | . . . . . . . . . . . . . . . . . . . 3 . . . . . . . . . . . . . Parts Stripped . | . . . . . . . . . . . . . . . . . . . . . . . . . . . . . . . . . Power Chain Reactions 12 | . 1 . . . . 4 . 2 1 . . . . . . . . . . . . 2 . . . . . 1 1 . . . Missiles Intercepted . | . . . . . . . . . . . . . . . . . . . . . . . . . . . . . . . . . Alert | -11 -10 -10 -10 -9 -8 -8 -7 -7 -7 -7 -6 -6 -6 -6 -6 -6 -5 -5 -5 -5 -4 -4 -4 -4 -4 -3 -3 -3 -2 -2 -2 -1 ------- Run | Scr Mat Min Exi Min Mat Sto Fac Low Low Zio Pro Fac Ext Cet Arc Hub Fac Upp Upp Zhi Pro Fac Upp Upp War Pro Res Qua Res Tes Sec Acc Peak Influence 1793 | 20 347 190 . 58 550 508 922 . . . . 360 493 475 430 292 272 . . . . 559 . . . . 685 510 703 793 927 1793 Initial 459 | . 13 120 . . . 232 224 . . . . 67 100 276 180 . 90 . . . . . . . . . 104 222 252 309 445 459 Average 306 | 13 181 103 . 24 182 257 432 . . . . 170 148 386 171 161 114 . . . . 192 . . . . 375 355 499 547 619 1050 Maximum Alert Level 5 | . 1 . . . 2 2 3 . . . . 1 2 2 2 1 1 . . . . 2 . . . . 2 2 3 3 3 5 Low Security (%) 44 | 100 40 100 . 100 73 40 24 . . . . 62 69 . 50 56 77 . . . . 52 . . . . 13 . . 5 8 . Level 1 29 | . 59 . . . 15 41 37 . . . . 37 24 61 36 43 22 . . . . 38 . . . . 46 70 12 19 21 . Level 2 15 | . . . . . 10 18 7 . . . . . 6 38 13 . . . . . . 9 . . . . 40 29 85 45 12 13 Level 3 8 | . . . . . . . 30 . . . . . . . . . . . . . . . . . . . . . 2 28 57 44 Level 4 1 | . . . . . . . . . . . . . . . . . . . . . . . . . . . . . . . . 31 Level 5 . | . . . . . . . . . . . . . . . . . . . . . . . . . . . . . . . . 10 High Security . | . . . . . . . . . . . . . . . . . . . . . . . . . . . . . . . . . Max Security . | . . . . . . . . . . . . . . . . . . . . . . . . . . . . . . . . . Squads Dispatched 101 | . 6 . . 1 6 8 9 . 1 . . 4 1 . . 9 5 . . . . 6 . . . . 7 . 4 11 12 11 Investigation 18 | . 2 . . 1 2 1 . . . . . . . . . 3 . . . . . 2 . . . . 4 . 2 . . 1 Extermination 23 | . . . . . . . 4 . . . . 1 . . . 2 1 . . . . 4 . . . . . . . 4 3 4 Reinforcement 42 | . 4 . . . 4 4 4 . . . . 3 1 . . 4 1 . . . . . . . . . 3 . 2 5 4 3 Assault 11 | . . . . . . . 1 . 1 . . . . . . . . . . . . . . . . . . . . 2 4 3 Garrison 7 | . . . . . . 3 . . . . . . . . . . 3 . . . . . . . . . . . . . 1 . Intercept . | . . . . . . . . . . . . . . . . . . . . . . . . . . . . . . . . . Construction Impeded 3 | . . . . . 1 . . . . . . . . . . . . . . . . . . . . . . . . 1 . 1 Haulers Reinforced 5 | . . . . . . 2 . . . . . . . . . . 1 . . . . . . . . . 1 . . . . 1 Active Scanning Responses . | . . . . . . . . . . . . . . . . . . . . . . . . . . . . . . . . . Cargo Convoy Interrupts 1 | . . . . . . . 1 . . . . . . . . . . . . . . . . . . . . . . . . . Stealth | -11 -10 -10 -10 -9 -8 -8 -7 -7 -7 -7 -6 -6 -6 -6 -6 -6 -5 -5 -5 -5 -4 -4 -4 -4 -4 -3 -3 -3 -2 -2 -2 -1 --------- Run | Scr Mat Min Exi Min Mat Sto Fac Low Low Zio Pro Fac Ext Cet Arc Hub Fac Upp Upp Zhi Pro Fac Upp Upp War Pro Res Qua Res Tes Sec Acc Distress Signals 47 | . . . . . 7 7 1 . . . . 1 2 2 . 7 2 . . . . . . . . . 6 . 4 1 3 4 Communications Jammed . | . . . . . . . . . . . . . . . . . . . . . . . . . . . . . . . . . Distress Signals . | . . . . . . . . . . . . . . . . . . . . . . . . . . . . . . . . . Times Spotted 752 | . 43 2 . 3 75 30 30 13 23 . 15 25 33 24 15 44 28 8 5 . 3 33 6 14 28 16 16 11 15 49 63 82 Peak Tracking Total 13 | . 4 2 . 3 5 6 5 5 7 . 5 6 7 7 1 12 9 5 3 . 2 5 2 5 13 5 4 3 4 7 12 8 Tactical Retreats 52 | . . . . . 9 5 . . 2 . . 1 . . . 7 1 . . . . . . . 1 2 . . . 5 5 14 Traps | -11 -10 -10 -10 -9 -8 -8 -7 -7 -7 -7 -6 -6 -6 -6 -6 -6 -5 -5 -5 -5 -4 -4 -4 -4 -4 -3 -3 -3 -2 -2 -2 -1 ------- Run | Scr Mat Min Exi Min Mat Sto Fac Low Low Zio Pro Fac Ext Cet Arc Hub Fac Upp Upp Zhi Pro Fac Upp Upp War Pro Res Qua Res Tes Sec Acc Traps Triggered 15 | . 1 . . . 2 1 . . . . . . 2 . . . . . . . . 1 1 3 . . . . . 1 1 2 Indirectly 1 | . . . . . . . . . . . . . . . . . . . . . . . . . . . . . . 1 . . Trap Hack Attempts . | . . . . . . . . . . . . . . . . . . . . . . . . . . . . . . . . . Triggered . | . . . . . . . . . . . . . . . . . . . . . . . . . . . . . . . . . Disarmed . | . . . . . . . . . . . . . . . . . . . . . . . . . . . . . . . . . Reprogrammed . | . . . . . . . . . . . . . . . . . . . . . . . . . . . . . . . . . Reused . | . . . . . . . . . . . . . . . . . . . . . . . . . . . . . . . . . Traps Extracted . | . . . . . . . . . . . . . . . . . . . . . . . . . . . . . . . . . Installed 4 | . . . . . . . . . . . . . . . . . . . . . . . 1 3 . . . . . . . . Triggered 16 | . . . . . . . 4 . . . . . . . . . . . . . . . . 1 11 . . . . . . . Machines | -11 -10 -10 -10 -9 -8 -8 -7 -7 -7 -7 -6 -6 -6 -6 -6 -6 -5 -5 -5 -5 -4 -4 -4 -4 -4 -3 -3 -3 -2 -2 -2 -1 ---------- Run | Scr Mat Min Exi Min Mat Sto Fac Low Low Zio Pro Fac Ext Cet Arc Hub Fac Upp Upp Zhi Pro Fac Upp Upp War Pro Res Qua Res Tes Sec Acc Machines Disabled 97 | . 3 . . . 4 8 6 1 1 . . 10 4 . 5 2 4 . . . . 7 . . 1 . . 5 4 11 18 3 Max in Single Turn 5 | . 1 . . . 2 2 2 1 1 . . 5 1 . 1 1 1 . . . . 4 . . 1 . . 1 1 3 2 1 Garrison Access 4 | . . . . . . . . . . . . . . . . . 1 . . . . . . . . . . . 2 . 1 . Network Hub 1 | . . . . . . . . . . . . . . . . 1 . . . . . . . . . . . . . . . . Energy Cycler 1 | . . . . . . . . . . . . . . . . . . . . . . . . . . . . . . . . 1 Machines Sabotaged 1 | . . . . . . . . . . . . . . . . 1 . . . . . . . . . . . . . . . . Garrisons Compromised 1 | . . . . . . . 1 . . . . . . . . . . . . . . . . . . . . . . . . . Overloaded Fab Kills . | . . . . . . . . . . . . . . . . . . . . . . . . . . . . . . . . . Fab Network Shutdowns 2 | . . . . . . . . . . . . . . . . . . . . . . 1 . . . . 1 . . . . . Hacking | -11 -10 -10 -10 -9 -8 -8 -7 -7 -7 -7 -6 -6 -6 -6 -6 -6 -5 -5 -5 -5 -4 -4 -4 -4 -4 -3 -3 -3 -2 -2 -2 -1 --------- Run | Scr Mat Min Exi Min Mat Sto Fac Low Low Zio Pro Fac Ext Cet Arc Hub Fac Upp Upp Zhi Pro Fac Upp Upp War Pro Res Qua Res Tes Sec Acc Machines Accessed 100 | . 4 1 2 1 8 6 10 . 1 1 . 6 12 . . 3 7 . . 4 . 8 . . 1 . 5 4 2 5 6 3 Terminals 65 | . 3 1 . . 4 5 4 . . . . 4 12 . . 3 4 . . . . 3 . . . . 4 4 . 5 6 3 Fabricators 6 | . . . . . . . 3 . . . . 1 . . . . . . . . . 1 . . . . 1 . . . . . Repair Stations 6 | . . . . . . . . . . . . 1 . . . . 1 . . . . 4 . . . . . . . . . . Recycling Units 5 | . 1 . . . 2 1 1 . . . . . . . . . . . . . . . . . . . . . . . . . Scanalyzers 5 | . . . . . 2 . 2 . . . . . . . . . 1 . . . . . . . . . . . . . . . Garrison Access 3 | . . . . . . . . . . . . . . . . . 1 . . . . . . . . . . . 2 . . . Total Hacks 383 | . 11 3 2 1 26 14 27 . 1 3 . 11 35 . . 12 68 . . 17 . 52 . . 1 . 35 11 4 16 23 10 Successful 233 | . 5 1 2 1 21 7 19 . 1 3 . 8 19 . . 4 45 . . 17 . 38 . . 1 . 12 5 2 5 15 2 Failed 149 | . 6 1 . . 5 7 8 . . . . 3 16 . . 8 23 . . . . 14 . . . . 23 6 2 11 8 8 Catastrophic 22 | . . . . . 1 2 . . . . . 1 4 . . . 1 . . . . . . . . . 5 2 . 3 2 1 Database Lockouts 1 | . . 1 . . . . . . . . . . . . . . . . . . . . . . . . . . . . . . Manual 121 | . 5 3 1 . 7 5 5 . . . . 1 8 . . 7 18 . . . . 17 . . . . 13 1 4 8 14 4 Terminals 250 | . 10 3 . . 10 12 10 . . . . 7 35 . . 12 38 . . . . 28 . . . . 25 11 . 16 23 10 Fabricators 28 | . . . . . . . 10 . . . . 2 . . . . . . . . . 6 . . . . 10 . . . . . Repair Stations 27 | . . . . . . . . . . . . 2 . . . . 7 . . . . 18 . . . . . . . . . . Recycling Units 9 | . 1 . . . 3 2 3 . . . . . . . . . . . . . . . . . . . . . . . . . Scanalyzers 38 | . . . . . 13 . 4 . . . . . . . . . 21 . . . . . . . . . . . . . . . Garrison Access 6 | . . . . . . . . . . . . . . . . . 2 . . . . . . . . . . . 4 . . . Terminal Hacks 131 | . 3 1 2 1 5 6 5 . 1 3 . 4 16 . . 1 17 . . 17 . 20 . . 1 . 7 4 . 4 12 1 Record 6 | . . . 1 . . . . . . . . . . . . . . . . 5 . . . . . . . . . . . . Part Schematic 14 | . . . . . . . . . . 3 . . 3 . . . 1 . . 4 . 1 . . . . 1 . . . 1 . Robot Schematic 1 | . . 1 . . . . . . . . . . . . . . . . . . . . . . . . . . . . . . Robot Analysis 5 | . 1 . . . . . . . . . . . . . . . . . . 4 . . . . . . . . . . . . Prototype ID Bank 22 | . 1 . . . 1 1 . . . . . 1 . . . . 4 . . 4 . 6 . . . . . 2 . . 2 . Open Door 15 | . . . . 1 . 2 . . 1 . . 1 6 . . . . . . . . . . . 1 . . . . 1 2 . Level Access Points 1 | . . . . . . . . . . . . . . . . . . . . . . 1 . . . . . . . . . . Branch Access Points 5 | . . . . . 1 . 1 . . . . . . . . . 1 . . . . 1 . . . . 1 . . . . . Machine Index 3 | . . . . . . . . . . . . . 1 . . . 1 . . . . 1 . . . . . . . . . . Terminal Index 4 | . . . . . . . 1 . . . . . 1 . . . . . . . . 1 . . . . 1 . . . . . Repair Station Index 1 | . . . . . . . . . . . . . . . . . 1 . . . . . . . . . . . . . . . Scanalyzer Index 1 | . . . . . . . . . . . . . . . . . 1 . . . . . . . . . . . . . . . Garrison Index 1 | . . . . . . . . . . . . . . . . . 1 . . . . . . . . . . . . . . . Alert Level 12 | . . . . . 1 2 2 . . . . . 1 . . . 1 . . . . . . . . . 1 1 . 1 2 . Unreport Threat 20 | . . . . . 2 . . . . . . 1 2 . . 1 2 . . . . 4 . . . . 1 . . 2 4 1 Locate Traps 6 | . . . . . . 1 1 . . . . 1 1 . . . . . . . . 1 . . . . . 1 . . . . Dispatch Records 1 | . 1 . . . . . . . . . . . . . . . . . . . . . . . . . . . . . . . Patrol Status 1 | . . . . . . . . . . . . . . . . . . . . . . 1 . . . . . . . . . . Transport Status 1 | . . . . . . . . . . . . . . . . . 1 . . . . . . . . . . . . . . . Recall Extermination 1 | . . . . . . . . . . . . . . . . . . . . . . . . . . . . . . . 1 . Hauler Manifests 2 | . . . . . . . . . . . . . . . . . 1 . . . . 1 . . . . . . . . . . Registered Components 3 | . . . . . . . . . . . . . . . . . 1 . . . . 1 . . . . 1 . . . . . Registered Prototypes 2 | . . . . . . . . . . . . . . . . . 1 . . . . 1 . . . . . . . . . . Zone Layout 2 | . . . . . . . . . . . . . 1 . . . . . . . . . . . . . 1 . . . . . EX-Prototype ID Bank 1 | . . . 1 . . . . . . . . . . . . . . . . . . . . . . . . . . . . . Fabricator Hacks 12 | . . . . . . . 5 . . . . 1 . . . . . . . . . 3 . . . . 3 . . . . . Load Schematic 6 | . . . . . . . 3 . . . . 1 . . . . . . . . . 1 . . . . 1 . . . . . Build 6 | . . . . . . . 2 . . . . . . . . . . . . . . 2 . . . . 2 . . . . . Repair Station Hacks 16 | . . . . . . . . . . . . 2 . . . . 4 . . . . 10 . . . . . . . . . . Scan Component 9 | . . . . . . . . . . . . 1 . . . . 2 . . . . 6 . . . . . . . . . . Repair 7 | . . . . . . . . . . . . 1 . . . . 2 . . . . 4 . . . . . . . . . . Recycling Unit Hacks 2 | . . . . . . . 2 . . . . . . . . . . . . . . . . . . . . . . . . . Retrieve Components 2 | . . . . . . . 2 . . . . . . . . . . . . . . . . . . . . . . . . . Scanalyzer 35 | . . . . . 13 . 4 . . . . . . . . . 18 . . . . . . . . . . . . . . . Insert Component 16 | . . . . . 6 . 2 . . . . . . . . . 8 . . . . . . . . . . . . . . . Analyze 19 | . . . . . 7 . 2 . . . . . . . . . 10 . . . . . . . . . . . . . . . Garrison Access Hacks 1 | . . . . . . . . . . . . . . . . . 1 . . . . . . . . . . . . . . . Seal Access 1 | . . . . . . . . . . . . . . . . . 1 . . . . . . . . . . . . . . . Unauthorized Hacks 36 | . 2 . . . 3 1 3 . . . . 1 3 . . 3 5 . . . . 5 . . . . 2 1 2 1 3 1 Terminals 24 | . 1 . . . 1 . 1 . . . . 1 3 . . 3 5 . . . . 2 . . . . 1 1 . 1 3 1 Track 7 | . 1 . . . . . . . . . . 1 . . . . 2 . . . . . . . . . . 1 . . 1 1 Assimilate 2 | . . . . . . . . . . . . . . . . . . . . . . 1 . . . . . . . 1 . . Botnet 8 | . . . . . 1 . . . . . . . 2 . . . 2 . . . . 1 . . . . 1 . . . 1 . Operators 5 | . . . . . . . 1 . . . . . 1 . . 1 1 . . . . . . . . . . . . . 1 . Sabotage 2 | . . . . . . . . . . . . . . . . 2 . . . . . . . . . . . . . . . . Fabricators 6 | . . . . . . . 2 . . . . . . . . . . . . . . 3 . . . . 1 . . . . . Prioritize 2 | . . . . . . . . . . . . . . . . . . . . . . 1 . . . . 1 . . . . . Siphon 2 | . . . . . . . 1 . . . . . . . . . . . . . . 1 . . . . . . . . . . Haulers 2 | . . . . . . . 1 . . . . . . . . . . . . . . 1 . . . . . . . . . . Repair Stations . | . . . . . . . . . . . . . . . . . . . . . . . . . . . . . . . . . Recycling Units 4 | . 1 . . . 2 1 . . . . . . . . . . . . . . . . . . . . . . . . . . Tunnel 4 | . 1 . . . 2 1 . . . . . . . . . . . . . . . . . . . . . . . . . . Scanalyzers . | . . . . . . . . . . . . . . . . . . . . . . . . . . . . . . . . . Garrison Access 2 | . . . . . . . . . . . . . . . . . . . . . . . . . . . . . 2 . . . Jam 2 | . . . . . . . . . . . . . . . . . . . . . . . . . . . . . 2 . . . Data Cores Recovered 2 | . . . . . . . . . . . . . . . . . . . . . . . . . . . . . . . 1 1 Used . | . . . . . . . . . . . . . . . . . . . . . . . . . . . . . . . . . Hacking Detections 67 | . 3 . . . 5 3 10 . . . . 3 8 . . 3 4 . . . . 7 . . . . 5 3 2 4 4 3 Full Trace Events 3 | . . . . . . . . . . . . . . . . 1 . . . . . 1 . . . . . . . . . 1 Feedback Events 1 | . . . . . . . . . . . . . . . . 1 . . . . . . . . . . . . . . . . Hackware Fried 1 | . . . . . . . . . . . . . . . . 1 . . . . . . . . . . . . . . . . Feedback Blocked . | . . . . . . . . . . . . . . . . . . . . . . . . . . . . . . . . . Robot Schematics Acquired 1 | . . 1 . . . . . . . . . . . . . . . . . . . . . . . . . . . . . . Robots Built . | . . . . . . . . . . . . . . . . . . . . . . . . . . . . . . . . . Matter . | . . . . . . . . . . . . . . . . . . . . . . . . . . . . . . . . . Time . | . . . . . . . . . . . . . . . . . . . . . . . . . . . . . . . . . Total Robot Build Rating . | . . . . . . . . . . . . . . . . . . . . . . . . . . . . . . . . . Part Schematics Acquired 27 | . . . . . 5 . 2 . . 3 . . 3 . . . 7 . . 4 . 1 . . . . 1 . . . 1 . Parts Built 7 | . . . . . . . 4 . . . . . . . . . . . . . . 1 . . . . 2 . . . . . Matter 1570 | . . . . . . . 292 . . . . . . . . . . . . . . 576 . . . . 702 . . . . . Time 517 | . . . . . . . 72 . . . . . . . . . . . . . . 306 . . . . 139 . . . . . Total Part Build Rating 34 | . . . . . . . 12 . . . . . . . . . . . . . . 8 . . . . 14 . . . . . Parts Repaired 7 | . . . . . . . . . . . . 1 . . . . 2 . . . . 4 . . . . . . . . . . Time 461 | . . . . . . . . . . . . 44 . . . . 197 . . . . 220 . . . . . . . . . . Parts Recycled . | . . . . . . . . . . . . . . . . . . . . . . . . . . . . . . . . . Recycled Matter . | . . . . . . . . . . . . . . . . . . . . . . . . . . . . . . . . . Retrieved Matter . | . . . . . . . . . . . . . . . . . . . . . . . . . . . . . . . . . Retrieved Components 10 | . . . . . . . 10 . . . . . . . . . . . . . . . . . . . . . . . . . Parts Scanalyzed 13 | . . . . . 5 . 2 . . . . . . . . . 6 . . . . . . . . . . . . . . . Part Schematics Acquired 13 | . . . . . 5 . 2 . . . . . . . . . 6 . . . . . . . . . . . . . . . Parts Damaged 1 | . . . . . . . . . . . . . . . . . 1 . . . . . . . . . . . . . . . Bothacking | -11 -10 -10 -10 -9 -8 -8 -7 -7 -7 -7 -6 -6 -6 -6 -6 -6 -5 -5 -5 -5 -4 -4 -4 -4 -4 -3 -3 -3 -2 -2 -2 -1 ------------ Run | Scr Mat Min Exi Min Mat Sto Fac Low Low Zio Pro Fac Ext Cet Arc Hub Fac Upp Upp Zhi Pro Fac Upp Upp War Pro Res Qua Res Tes Sec Acc Used RIF Installer . | . . . . . . . . . . . . . . . . . . . . . . . . . . . . . . . . . Robots Hacked 1 | . . . . . . . . . . . . . . . 1 . . . . . . . . . . . . . . . . . Non-combat 1 | . . . . . . . . . . . . . . . 1 . . . . . . . . . . . . . . . . . Combat . | . . . . . . . . . . . . . . . . . . . . . . . . . . . . . . . . . Robot Hacks Applied 1 | . . . . . . . . . . . . . . . 1 . . . . . . . . . . . . . . . . . check_alert 1 | . . . . . . . . . . . . . . . 1 . . . . . . . . . . . . . . . . . Relay Couplers Released 11 | . . . . . . . 4 . . . . . . . . . . . . . . . . . . . . 3 2 . 2 . Machine Destruction 4 | . . . . . . . . . . . . . . . . . . . . . . . . . . . . . 2 . 2 . Programmers 7 | . . . . . . . 4 . . . . . . . . . . . . . . . . . . . . 3 . . . . Robots Rewired 23 | . . . . . . . 1 1 . . . . 21 . . . . . . . . . . . . . . . . . . . Allies Hacked . | . . . . . . . . . . . . . . . . . . . . . . . . . . . . . . . . . Hacks Repelled . | . . . . . . . . . . . . . . . . . . . . . . . . . . . . . . . . . Allies | -11 -10 -10 -10 -9 -8 -8 -7 -7 -7 -7 -6 -6 -6 -6 -6 -6 -5 -5 -5 -5 -4 -4 -4 -4 -4 -3 -3 -3 -2 -2 -2 -1 -------- Run | Scr Mat Min Exi Min Mat Sto Fac Low Low Zio Pro Fac Ext Cet Arc Hub Fac Upp Upp Zhi Pro Fac Upp Upp War Pro Res Qua Res Tes Sec Acc Total Allies 51 | . . 3 . . . 10 1 1 . 5 . . 30 . . . . . . . . . . . . . . . . 1 . . Largest Group 14 | . . 3 3 3 3 10 1 1 . 5 5 . 14 5 . . . . . . . . . . . . . . . 1 . . Highest-Rated Group 453 | . . 40 40 40 40 173 16 16 . 129 129 . 453 263 . . . . . . . . . . . . . . . 10 . . Highest-Rated Ally 156 | . . 16 16 16 16 29 16 16 . 31 31 . 156 156 . . . . . . . . . . . . . . . 10 . . Total Orders 64 | . . 2 . 2 . 2 9 6 7 . 6 4 2 4 . . 6 . . . . 4 . . . . 3 1 6 . . . STAY 4 | . . 1 . 1 . . . . . . . . . 2 . . . . . . . . . . . . . . . . . . ROAM 4 | . . . . . . 2 . . . . . . 1 1 . . . . . . . . . . . . . . . . . . FOLLOW 4 | . . 1 . 1 . . . . . . . . 1 1 . . . . . . . . . . . . . . . . . . EXPLORE 25 | . . . . . . . 8 . . . . 3 . . . . 4 . . . . 4 . . . . 1 . 5 . . . RETURN 27 | . . . . . . . 1 6 7 . 6 1 . . . . 2 . . . . . . . . . 2 1 1 . . . Ally Attacks 583 | . . 8 . . 7 110 7 53 142 . 70 . 143 33 . . . . . . . . . . . . 6 4 . . . . Total Damage 14755 | . . 133 . . 84 2450 229 1117 4426 . 2024 . 3351 702 . . . . . . . . . . . . 130 109 . . . . Kills 104 | . . 3 . . 2 18 2 4 28 . 16 . 23 7 . . . . . . . . . . . . 1 . . . . . Allies Corrupted 2 | . . . . . . . 1 . . . . . 1 . . . . . . . . . . . . . . . . . . . Allies Melted 1 | . . . . . . . . . . . . . . . . . . . . . . . . . . . . . 1 . . . Turrets Deployed 3 | . . . . . . 2 1 . . . . . . . . . . . . . . . . . . . . . . . . . Intel | -11 -10 -10 -10 -9 -8 -8 -7 -7 -7 -7 -6 -6 -6 -6 -6 -6 -5 -5 -5 -5 -4 -4 -4 -4 -4 -3 -3 -3 -2 -2 -2 -1 ------- Run | Scr Mat Min Exi Min Mat Sto Fac Low Low Zio Pro Fac Ext Cet Arc Hub Fac Upp Upp Zhi Pro Fac Upp Upp War Pro Res Qua Res Tes Sec Acc Robot Analysis Total 5 | . 1 . . . . . . . . . . . . . . . . . . 4 . . . . . . . . . . . . Derelict Logs Recovered 14 | . . 1 . 1 . . . 2 1 3 1 . . . . . . . . . 2 . 1 2 . . . . . . . . Drone Launches 144 | . . . . . . . 17 18 47 9 30 4 . . . . 4 . . . . 4 . . . . 4 2 5 . . . Drone Recoveries 104 | . . . . . . . 2 22 33 . 31 2 . . . . 2 . . . . 2 . . . . 4 2 4 . . . Exploration | -11 -10 -10 -10 -9 -8 -8 -7 -7 -7 -7 -6 -6 -6 -6 -6 -6 -5 -5 -5 -5 -4 -4 -4 -4 -4 -3 -3 -3 -2 -2 -2 -1 ------------- Run | Scr Mat Min Exi Min Mat Sto Fac Low Low Zio Pro Fac Ext Cet Arc Hub Fac Upp Upp Zhi Pro Fac Upp Upp War Pro Res Qua Res Tes Sec Acc Turns Passed 45006 | 224 2581 994 1096 458 5539 3486 2116 899 800 2747 687 1358 2602 631 1552 955 1600 702 378 245 504 1862 496 793 655 565 761 996 1608 1523 1716 1877 Spaces Moved 16703 | 119 1236 665 579 185 956 520 891 333 292 1093 261 509 700 177 195 372 658 403 213 147 284 737 282 355 361 304 353 449 926 604 650 894 Core 57 | 13 . . . . . . . . . . . . 20 . 24 . . . . . . . . . . . . . . . . . Treads 6994 | 106 6 . . . 442 394 . . . . . . 3 33 115 . 88 403 1 78 284 234 282 355 361 304 353 449 926 556 648 573 Legs 290 | . . . . . . . . . . . . . . . . . . . . . . . . . . . . . . . . 290 Wheels 9360 | . 1230 665 579 185 514 126 891 333 292 1093 261 509 677 144 56 372 570 . 212 69 . 503 . . . . . . . 48 . 31 Hover . | . . . . . . . . . . . . . . . . . . . . . . . . . . . . . . . . . Flight . | . . . . . . . . . . . . . . . . . . . . . . . . . . . . . . . . . Fastest Speed 50 | 50 80 135 90 210 190 190 175 250 235 250 190 175 160 160 220 161 145 160 150 135 160 115 163 163 163 170 170 145 145 153 160 105 Average Speed 209 | 149 120 135 181 210 411 566 193 250 249 250 249 179 285 181 714 204 147 160 150 150 160 162 163 163 164 170 170 191 151 170 160 137 Slowest Speed 4050 | 160 200 135 210 210 660 670 250 250 250 250 250 220 3950 260 4050 235 160 160 260 260 160 245 163 163 267 170 170 270 257 320 160 360 Overloaded Moves . | . . . . . . . . . . . . . . . . . . . . . . . . . . . . . . . . . Propulsion Burnouts . | . . . . . . . . . . . . . . . . . . . . . . . . . . . . . . . . . Robots Hopped . | . . . . . . . . . . . . . . . . . . . . . . . . . . . . . . . . . Cave-ins Triggered 9 | . . . . . . . . . . . . . . . . . . . . . . . . . . . . . . . 7 2 Teleports 2 | . . . . . . . . . . . . . . . . . . . . . . . . . . . . . . 1 1 . Spacefolds 1 | . . . . . . . . . . . . . . . . . . . . . . . . . . . . . . . 1 . Exploration Rate (%) 53 | 5 91 97 70 29 57 77 43 51 62 80 62 38 83 56 83 32 20 61 45 60 51 18 52 69 53 58 12 64 40 67 44 24 Regions Visited 32 Branch Regions 23 Pre-discovered Areas 11 | . 1 . 1 . 2 1 . . . 1 . . . . . . . . . 3 1 . . 1 . . . . . . . . Known Exits Taken 10 | . . . . . 1 . 1 1 . . . 1 . . . . 1 . . . . 1 . . . 1 1 . 1 . 1 . Unknown Exits Taken 22 | 1 1 1 1 1 . 1 . . 1 1 1 . 1 1 1 1 . 1 1 1 1 . 1 1 1 . . 1 . 1 . . Scrap Searched 24 | . . 1 . 1 . . . 2 1 2 3 . . . . . . . 2 . 2 . 4 3 . 3 . . . . . . Spaces Dug 347 | . 28 16 . 11 1 4 7 7 . . . 2 . . . 8 . . . . . 1 . 1 1 . . 1 38 37 122 62 Terrain Destroyed 1315 | . 167 34 . 28 5 75 44 17 13 . 2 70 26 14 7 30 24 14 13 . 12 44 4 16 2 16 . 36 90 172 200 140 Melee 6 | . . . . . . . . . . . . . . . . . . . . . . . . . . . . . . . . 6 Projectile 609 | . . . . . 1 30 44 6 11 . 2 27 26 14 7 30 24 14 13 . 12 32 4 16 2 16 . 6 47 75 79 71 AOE 677 | . 167 34 . 28 4 45 . 11 2 . . 43 . . . . . . . . . 12 . . . . . 30 43 94 118 46 Terrain Rammed . | . . . . . . . . . . . . . . . . . . . . . . . . . . . . . . . . . Walls Destroyed . | . . . . . . . . . . . . . . . . . . . . . . . . . . . . . . . . . Machines Disabled . | . . . . . . . . . . . . . . . . . . . . . . . . . . . . . . . . . Actions | -11 -10 -10 -10 -9 -8 -8 -7 -7 -7 -7 -6 -6 -6 -6 -6 -6 -5 -5 -5 -5 -4 -4 -4 -4 -4 -3 -3 -3 -2 -2 -2 -1 --------- Run | Scr Mat Min Exi Min Mat Sto Fac Low Low Zio Pro Fac Ext Cet Arc Hub Fac Upp Upp Zhi Pro Fac Upp Upp War Pro Res Qua Res Tes Sec Acc Total 25271 | 143 2201 744 634 254 2278 984 1191 393 353 1110 289 923 1279 469 333 528 1253 445 259 172 321 1343 309 554 420 339 514 582 1138 965 1184 1367 Wait 5420 | . 822 65 2 57 1061 328 91 31 28 14 10 311 248 202 68 84 477 17 6 . 16 421 10 133 . 7 113 12 112 157 334 183 Move 16663 | 118 1235 664 578 184 955 519 890 332 291 1092 260 508 699 176 194 371 657 402 212 146 283 736 281 354 360 303 353 448 925 603 643 891 Hop . | . . . . . . . . . . . . . . . . . . . . . . . . . . . . . . . . . Pick Up 286 | 6 24 2 34 5 20 19 29 1 4 2 . 13 2 8 8 3 11 1 9 3 2 18 . 5 6 . 8 6 6 8 10 13 Fast Attach 227 | 7 12 . 2 . 16 10 12 . 3 . . 3 3 5 3 1 6 . 1 7 1 20 . 11 11 . 5 18 14 21 12 23 Attach 254 | . 1 . 2 1 11 11 12 4 6 . 8 5 5 12 8 13 23 1 6 2 . 13 2 4 3 4 5 4 8 15 28 37 Detach 191 | . 2 . . . 5 5 9 4 6 . 1 4 5 8 6 9 12 1 . 3 . 10 2 10 4 3 6 5 3 14 24 30 Swap 209 | . 19 4 . . 27 6 11 . . . 1 13 7 3 . 8 7 . 1 . 3 10 1 3 5 6 1 2 5 28 28 10 Drop 350 | 2 18 1 16 5 31 18 44 1 3 2 1 3 3 16 9 1 10 . 5 9 . 30 1 11 14 . 6 19 21 19 9 22 Fire 1374 | 10 68 8 . 2 147 66 85 8 12 . 8 63 65 39 36 38 50 23 19 2 16 85 10 20 17 16 14 68 44 96 91 148 Melee 9 | . . . . . . . . . . . . . . . 1 . . . . . . . . . . . . . . 2 . 6 Ram . | . . . . . . . . . . . . . . . . . . . . . . . . . . . . . . . . . Kick . | . . . . . . . . . . . . . . . . . . . . . . . . . . . . . . . . . Crush 15 | . . . . . 5 2 . . . . . . . . . . . . . . . . 1 . . . 3 . . 2 . 2 Escape Stasis 13 | . . . . . . . . . . . . . 6 . . . . . . . . . . . . . . . . . 5 2 Rewire 256 | . . . . . . . 8 12 . . . . 236 . . . . . . . . . . . . . . . . . . . Trap 4 | . . . . . . . . . . . . . . . . . . . . . . . 1 3 . . . . . . . . Miscellaneous . | . . . . . . . . . . . . . . . . . . . . . . . . . . . . . . . . . Route ------- -11/Scrapyard -10/Materials (discovered 4 exits: [*Mat x3] / *Min) -10/Mines (discovered 3 exits: [*Mat x2] / *Exi) -10/Exiles -9/Mines -8/Materials (discovered 2 exits: *Sto x2) -8/Storage -7/Factory (discovered 2 exits: *Low x2) -7/Lower Caves -7/Lower Caves (discovered 2 exits: *Fac / *Zio) -7/Zion -6/Proximity Caves -6/Factory (discovered 4 exits: *Fac / *Low / *Ext x2) -6/Extension (discovered 2 exits: *Fac / [*Cet]) -6/Cetus -6/Archives (discovered 3 exits: *Fac / *Hub x2) -6/Hub_04(d) (discovered 2 exits: *Fac x2) -5/Factory (discovered 3 exits: *Fac / *Upp x2) -5/Upper Caves -5/Upper Caves (discovered 2 exits: *Fac / *Zhi) -5/Zhirov -4/Proximity Caves -4/Factory (discovered 6 exits: Res x4 / *Upp x2) -4/Upper Caves -4/Upper Caves -4/Warlord -3/Proximity Caves -3/Research (discovered 3 exits: Arm / *Qua x2) -3/Quarantine -2/Research (discovered 4 exits: *Acc x3 / *Tes) -2/Testing (discovered 2 exits: *Acc / *Sec) -2/Section 7 -1/Access To Fleet Rendezvous History --------- Turn | Location | Event 7 | -11/Scrapyard | Discovered new exit (range 15) 225 | -11/Scrapyard | Entered Materials 306 | -10/Materials | Build established: Mutant 972 | -10/Materials | Discovered new exit (range 7) 1455 | -10/Materials | Discovered new exit (range 16) 1654 | -10/Materials | Discovered new exit (range 9) 2016 | -10/Materials | Discovered new exit (range 16) 2806 | -10/Materials | Entered Mines 2850 | -10/Mines | Deemed a non-threat by the Exiles lab entrance 2909 | -10/Mines | Destroyed YI-UF0 2949 | -10/Mines | Assisted by bots powering up and referring to "LRC-V3" 3066 | -10/Mines | Discovered new exit (range 5) 3185 | -10/Mines | Central database locked down 3335 | -10/Mines | Discovered new exit (range 9) 3422 | -10/Mines | Learned Materials emergency access door positions 3477 | -10/Mines | Met a Derelict testing a Signal Generator 3480 | -10/Mines | Found Signal Generator 3773 | -10/Mines | Discovered new exit (range 5) 3800 | -10/Mines | Entered Exiles 3800 | -10/Exiles | Accompanied by 3 allies 3833 | -10/Exiles | Met 8R-AWN 3854 | -10/Exiles | Met EX-HEX 3906 | -10/Exiles | Met EX-DEC 3930 | -10/Exiles | Learned location of Zion (-7) 4316 | -10/Exiles | Build established: Hauler-Mutant 4497 | -10/Exiles | Met EX-BIN 4526 | -10/Exiles | Aligned with FarCom system 4529 | -10/Exiles | Given EX-Vault access code 4581 | -10/Exiles | Opened EX-Vault 4600 | -10/Exiles | Found Deploy-a-Sentry 4603 | -10/Exiles | Found Deploy-a-Sentry 4606 | -10/Exiles | Found Deploy-a-Sentry 4613 | -10/Exiles | Found Skeleton Box 4623 | -10/Exiles | Found Army-in-a-Box 4667 | -10/Exiles | Warned to stay clear of 0b10 Research branches 4869 | -10/Exiles | Discovered new exit (range 14) 4896 | -10/Exiles | Stole three prototypes: Deploy-a-Sentry, Army-in-a-Box, Skeleton Box 4896 | -10/Exiles | Entered Mines 4896 | -9/Mines | Accompanied by 3 allies 4974 | -9/Mines | Discovered new exit (range 9) 5145 | -9/Mines | Met a Derelict shopkeep closing up shop 5185 | -9/Mines | Learned Materials garrison access intel 5354 | -9/Mines | Entered Materials 5354 | -8/Materials | Accompanied by 3 allies 5354 | -8/Materials | Evolved 4 slots: Utility x4 5356 | -8/Materials | Loaded intel: 1 garrison access location 8520 | -8/Materials | Discovered new exit (range 9) 10583 | -8/Materials | Identified exit to Storage 10893 | -8/Materials | Entered Storage 10945 | -8/Storage | DAS Turret deployed 10999 | -8/Storage | System corruption reached 10% 11003 | -8/Storage | Lost 6 parts (1p1n3u1w) 11008 | -8/Storage | DAS Turret deployed 12093 | -8/Storage | Assisted by bots powering up and referring to "LRC-V3" 12255 | -8/Storage | Garrison activated, responded to threat 14209 | -8/Storage | Discovered new exit (range 16) 14379 | -8/Storage | Entered Factory 14379 | -7/Factory | Evolved 2 slots: Utility x2 14381 | -7/Factory | FarCom data flow suspended 14768 | -7/Factory | Discovered new exit (range 53) 14788 | -7/Factory | Identified exit to Lower Caves 15228 | -7/Factory | Fabricated Imp. Utility Shielding? 15515 | -7/Factory | Fabricated Imp. Utility Shielding (x2) 15740 | -7/Factory | Cargo convoy interrupted 15806 | -7/Factory | DAS Turret deployed 15986 | -7/Factory | Found Prototype Slashing Weapon 15986 | -7/Factory | Identified Vibroblade 16115 | -7/Factory | System corruption reached 10% 16135 | -7/Factory | Found Corrupted Prototype Hackware 16417 | -7/Factory | First assault squad dispatched 16495 | -7/Factory | Entered Lower Caves 16495 | -7/Lower Caves | Accompanied by 9 allies 16495 | -7/Lower Caves | Spotted ZF-1W4(f) 16495 | -7/Lower Caves | Spotted TV-U91(f) 16496 | -7/Lower Caves | Encountered a Master Thief 16496 | -7/Lower Caves | Encountered a Master Thief 16502 | -7/Lower Caves | Allies destroyed TV-U91(f) 16503 | -7/Lower Caves | Allies destroyed ZF-1W4(f) 16595 | -7/Lower Caves | Attracted the attention of an 0b10 outpost 16754 | -7/Lower Caves | Learned Factory terminal intel 17079 | -7/Lower Caves | Identified exit to Lower Caves 17171 | -7/Lower Caves | Spotted B-75 Beast 17192 | -7/Lower Caves | Destroyed B-75 Beast 17388 | -7/Lower Caves | Attracted the attention of an 0b10 checkpoint 17394 | -7/Lower Caves | Entered another Lower Caves area 17394 | -7/Lower Caves | Accompanied by 2 allies 17394 | -7/Lower Caves | Discovered new exit (range 9) 17423 | -7/Lower Caves | Encountered a Warlord checkpoint 17620 | -7/Lower Caves | Attracted the attention of an 0b10 outpost 17694 | -7/Lower Caves | Learned Factory security intel 17880 | -7/Lower Caves | Spotted PE-YEM(f) 17881 | -7/Lower Caves | Encountered a Master Thief 17881 | -7/Lower Caves | Spotted S1-U1U(f) 17882 | -7/Lower Caves | Encountered a Master Thief 17882 | -7/Lower Caves | Spotted B2-EEF(f) 17883 | -7/Lower Caves | Spotted DY-G7H(f) 17884 | -7/Lower Caves | Encountered a Master Thief 17884 | -7/Lower Caves | Spotted US-DG3(f) 17885 | -7/Lower Caves | Encountered a Master Thief 17887 | -7/Lower Caves | Allies destroyed DY-G7H(f) 17888 | -7/Lower Caves | Encountered a Master Thief 17894 | -7/Lower Caves | Allies destroyed B2-EEF(f) 17901 | -7/Lower Caves | Allies destroyed PE-YEM(f) 17903 | -7/Lower Caves | Allies destroyed US-DG3(f) 17903 | -7/Lower Caves | Allies destroyed S1-U1U(f) 18166 | -7/Lower Caves | Discovered new exit (range 8) 18194 | -7/Lower Caves | Entered Zion 18419 | -7/Zion | System corruption cleaned by Quarantine Array 18539 | -7/Zion | Received a visual enhancement algorithm 18727 | -7/Zion | Discovered new exit (range 11) 18989 | -7/Zion | Learned Factory terminal intel 19049 | -7/Zion | Learned Factory emergency access door positions 19199 | -7/Zion | Gained Derelict followers 19363 | -7/Zion | Found Prototype Device 19444 | -7/Zion | Learned location of 1 exit from Factory 19449 | -7/Zion | Found GAL Module 19607 | -7/Zion | Learned location of 2 exits from Factory 20941 | -7/Zion | Entered Proximity Caves 20941 | -6/Proximity Caves | Accompanied by 14 allies 21076 | -6/Proximity Caves | Learned Factory trap positions 21139 | -6/Proximity Caves | Spotted B-75 Beast 21175 | -6/Proximity Caves | Allies destroyed B-75 Beast 21581 | -6/Proximity Caves | Discovered new exit (range 16) 21628 | -6/Proximity Caves | Entered Factory 21628 | -6/Factory | Evolved 2 slots: Propulsion x2 21629 | -6/Factory | Identified exit to Extension 21629 | -6/Factory | Identified exit to Lower Caves 21630 | -6/Factory | Loaded intel: 89 trap records 21633 | -6/Factory | Loaded intel: 22 terminal locations 21711 | -6/Factory | Repaired Arm. Huge Wheel 22535 | -6/Factory | Discovered new exit (range 14) 22986 | -6/Factory | Entered Extension 23191 | -6/Extension | Destroyed 14 combat bots 24132 | -6/Extension | Rescued a captive Derelict 24133 | -6/Extension | Rescued a captive Derelict 24302 | -6/Extension | Rescued a captive Derelict 24363 | -6/Extension | Rescued a captive Derelict 24363 | -6/Extension | Rescued a captive Derelict 24562 | -6/Extension | Build established: Commander-Mutant 24670 | -6/Extension | Spotted B-75 Beast 24682 | -6/Extension | Spotted B-75 Beast 24696 | -6/Extension | Allies destroyed B-75 Beast 24705 | -6/Extension | Allies destroyed B-75 Beast 24849 | -6/Extension | Rescued a captive Derelict 24850 | -6/Extension | Rescued a captive Derelict 24956 | -6/Extension | Rescued A7 24965 | -6/Extension | Build established: Hauler-Mutant 24987 | -6/Extension | Rescued a captive Derelict 25556 | -6/Extension | Disrupted transfer network 25566 | -6/Extension | Discovered new exit (range 10) 25575 | -6/Extension | Discovered new exit (range 6) 25588 | -6/Extension | Entered Cetus 25588 | -6/Cetus | Accompanied by 5 allies (A7) 25593 | -6/Cetus | Acquired a Cetus Manufacturing Module code from A7 25617 | -6/Cetus | Spotted Cetus Guard 25619 | -6/Cetus | Spotted Cetus Guard 25621 | -6/Cetus | Spotted Cetus Guard 25626 | -6/Cetus | Allies destroyed Cetus Guard 25628 | -6/Cetus | Allies destroyed Cetus Guard 25884 | -6/Cetus | Destroyed A7 25885 | -6/Cetus | Extracted ID and sensor layout for unrecognized location from A7's data core 25973 | -6/Cetus | Discovered new exit (range 15) 26105 | -6/Cetus | Spotted Cetus Guard 26106 | -6/Cetus | Spotted Cetus Guard 26115 | -6/Cetus | Spotted Cetus Guard 26117 | -6/Cetus | Spotted Cetus Guard 26118 | -6/Cetus | Destroyed Cetus Guard 26120 | -6/Cetus | Destroyed Cetus Guard 26128 | -6/Cetus | Destroyed Cetus Guard 26137 | -6/Cetus | Destroyed Cetus Guard 26219 | -6/Cetus | Entered Archives 26453 | -6/Archives | Discovered new exit (range 16) 26545 | -6/Archives | Discovered new exit (range 15) 27137 | -6/Archives | Discovered new exit (range 15) 27771 | -6/Archives | Entered Hub_04(d) 27833 | -6/Hub_04(d) | Discovered new exit (range 9) 28344 | -6/Hub_04(d) | Discovered new exit (range 9) 28597 | -6/Hub_04(d) | Network Hub disabled 28605 | -6/Hub_04(d) | Imp. Hacking Suite fried by hacking feedback 28613 | -6/Hub_04(d) | Disrupted transfer network 28721 | -6/Hub_04(d) | Spotted Lightning 28723 | -6/Hub_04(d) | Spotted Lightning 28723 | -6/Hub_04(d) | Spotted Lightning 28726 | -6/Hub_04(d) | Entered Factory 28726 | -5/Factory | Evolved 2 slots: Power x1, Utility x1 28727 | -5/Factory | Loaded intel: 20 terminal locations 28757 | -5/Factory | Lost 3 parts (1n2u) 28784 | -5/Factory | Discovered new exit (range 40) 28784 | -5/Factory | Discovered new exit (range 36) 28943 | -5/Factory | Identified exit to Upper Caves 29069 | -5/Factory | Repaired Tri-rail Accelerator 29215 | -5/Factory | Repaired Centrium Medium Armor Plating? 29415 | -5/Factory | Build established: Hacker-Mutant 29487 | -5/Factory | Identified Exp. Hacking Suite 29487 | -5/Factory | Identified Phasing AFG 29926 | -5/Factory | System corruption reached 10% 29926 | -5/Factory | Garrison activated, responded to threat 29989 | -5/Factory | Destroyed 9 combat bots 30205 | -5/Factory | Build established: Scavenger-Mutant 30326 | -5/Factory | Entered Upper Caves 31016 | -5/Upper Caves | Discovered new exit (range 8) 31028 | -5/Upper Caves | Entered another Upper Caves area 31028 | -5/Upper Caves | Spotted W6-ZML(f) 31028 | -5/Upper Caves | Spotted 9L-K2G(f) 31029 | -5/Upper Caves | Encountered a Master Thief 31029 | -5/Upper Caves | Encountered a Master Thief 31029 | -5/Upper Caves | Phasing AFG stolen by Master Thief 31031 | -5/Upper Caves | Spotted HE-5YT(f) 31032 | -5/Upper Caves | Encountered a Master Thief 31034 | -5/Upper Caves | Destroyed 9L-K2G(f) 31035 | -5/Upper Caves | Centrium Heavy Treads stolen by Master Thief 31050 | -5/Upper Caves | Centrium Medium Armor Plating stolen by Master Thief 31051 | -5/Upper Caves | Destroyed W6-ZML(f) 31089 | -5/Upper Caves | Discovered new exit (range 8) 31391 | -5/Upper Caves | Acquired the password to a Derelict Tinkerer's latest research 31393 | -5/Upper Caves | Discovered new exit (range 10) 31406 | -5/Upper Caves | Entered Zhirov 31407 | -5/Zhirov | Discovered new exit (range 3) 31431 | -5/Zhirov | Met Zhirov 31463 | -5/Zhirov | Found Alien Artifact 31463 | -5/Zhirov | Identified Integrated Reactor 31463 | -5/Zhirov | Installed Integrated Reactor, increased core energy generation (+10) 31554 | -5/Zhirov | Found Alien Artifact 31591 | -5/Zhirov | Learned location of Quarantine (-3) 31591 | -5/Zhirov | Learned location of Testing (-2) 31591 | -5/Zhirov | Learned location of Command (-1) 31605 | -5/Zhirov | Zhirov requested help retrieving the SGEMP Prototype 31651 | -5/Zhirov | Entered Proximity Caves 32089 | -4/Proximity Caves | Discovered new exit (range 13) 32155 | -4/Proximity Caves | System corruption reached 30% 32155 | -4/Proximity Caves | Entered Factory 32155 | -4/Factory | Evolved 2 slots: Propulsion x2 32288 | -4/Factory | Repaired Broken Centrium Heavy Treads? 32396 | -4/Factory | Identified exit to Research 32501 | -4/Factory | Destroyed 7 combat bots 32510 | -4/Factory | Build established: Hacker-Mutant 32599 | -4/Factory | Repaired Centrium Medium Armor Plating 32659 | -4/Factory | Repaired Tri-rail Accelerator? 32806 | -4/Factory | Identified exit to Upper Caves 32883 | -4/Factory | Repaired Centrium Medium Armor Plating 33524 | -4/Factory | Found Exp. Terrain Scan Processor 33526 | -4/Factory | Found Exp. Terrain Scan Processor 33614 | -4/Factory | Fabricated Centrium Heavy Treads (x1) 33655 | -4/Factory | Local fabrication network quarantined 33874 | -4/Factory | Found Quantum Capacitor 34017 | -4/Factory | Entered Upper Caves 34017 | -4/Upper Caves | Spotted QN-FBT(f) 34017 | -4/Upper Caves | Spotted QU-J6Y(f) 34018 | -4/Upper Caves | Encountered a Master Thief 34018 | -4/Upper Caves | Encountered a Master Thief 34034 | -4/Upper Caves | Destroyed QU-J6Y(f) 34102 | -4/Upper Caves | System corruption reached 10% 34391 | -4/Upper Caves | Encountered a Warlord checkpoint 34403 | -4/Upper Caves | Learned Research stockpile data 34478 | -4/Upper Caves | Discovered new exit (range 20) 34513 | -4/Upper Caves | Entered another Upper Caves area 34513 | -4/Upper Caves | Spotted RM-W01(f) 34513 | -4/Upper Caves | Spotted U0-I2N(f) 34514 | -4/Upper Caves | Encountered a Master Thief 34514 | -4/Upper Caves | Encountered a Master Thief 34518 | -4/Upper Caves | Destroyed U0-I2N(f) 34519 | -4/Upper Caves | Destroyed RM-W01(f) 34534 | -4/Upper Caves | Spotted P5-0R3(f) 34535 | -4/Upper Caves | Encountered a Master Thief 34545 | -4/Upper Caves | Destroyed P5-0R3(f) 34661 | -4/Upper Caves | Attracted the attention of an 0b10 checkpoint 34855 | -4/Upper Caves | Learned Research stockpile data 34876 | -4/Upper Caves | Build established: Mutant 35064 | -4/Upper Caves | Discovered new exit (range 20) 35306 | -4/Upper Caves | Entered Warlord 35363 | -4/Warlord | System corruption cleaned by Quarantine Array 35593 | -4/Warlord | Visited the Vortex Lab 35596 | -4/Warlord | Warlord's base attacked by MAIN.C 35602 | -4/Warlord | Found Prototype Energy Gun 35602 | -4/Warlord | Identified Vortex Rifle 35607 | -4/Warlord | Found Vortex Rifle 35612 | -4/Warlord | Found Prototype Energy Gun 35612 | -4/Warlord | Identified Vortex Rail 35616 | -4/Warlord | Found Vortex Rail 35621 | -4/Warlord | Found Prototype Launcher 35723 | -4/Warlord | Met Warlord 35742 | -4/Warlord | Found Prototype Device 35742 | -4/Warlord | Identified System Purifier 35763 | -4/Warlord | Found Prototype Reactor 35763 | -4/Warlord | Identified Vortex Chain Reactor 35866 | -4/Warlord | Warlord forces counterattacked 35919 | -4/Warlord | Spotted B-90 Cyclops 35920 | -4/Warlord | Spotted B-86 Titan 35926 | -4/Warlord | Spotted Executioner 35930 | -4/Warlord | Spotted Striker 35941 | -4/Warlord | Discovered new exit (range 15) 35961 | -4/Warlord | Entered Proximity Caves 36188 | -3/Proximity Caves | Build established: Scavenger-Mutant 36497 | -3/Proximity Caves | Discovered exit to Research (range 14) 36526 | -3/Proximity Caves | Entered Research 36526 | -3/Research | Evolved 2 slots: Utility x1, Weapon x1 36544 | -3/Research | Identified exit to Armory 36544 | -3/Research | Identified exit to Quarantine 36726 | -3/Research | Revision forces began assault on 0b10 36761 | -3/Research | Met up with Revision 17++ 36797 | -3/Research | Fabricated Assault Drone Bay (x1) 36824 | -3/Research | Local fabrication network quarantined 36843 | -3/Research | Fabricated Assault Drone Bay (x1) 37226 | -3/Research | Research terminal network offline 37287 | -3/Research | Entered Quarantine 37315 | -3/Quarantine | Cryocooling Duct disabled 37318 | -3/Quarantine | Cryocooling Duct disabled 37330 | -3/Quarantine | Ambient heat levels rising (+20) 37330 | -3/Quarantine | Non-combat units ordered to evacuate 37333 | -3/Quarantine | Ambient heat levels rising (+20) 37333 | -3/Quarantine | Combat units ordered to evacuate 37433 | -3/Quarantine | Quarantine Guard activated 37515 | -3/Quarantine | Found Alien Artifact 37515 | -3/Quarantine | Identified Matter Drive 37532 | -3/Quarantine | Spotted Quarantine Guard 37534 | -3/Quarantine | Spotted Quarantine Guard 37540 | -3/Quarantine | Destroyed Quarantine Guard 37584 | -3/Quarantine | Found Alien Artifact 37584 | -3/Quarantine | Identified Subatomic Replicator 37620 | -3/Quarantine | Found Alien Impact Weapon 37640 | -3/Quarantine | Spotted Quarantine Guard 37646 | -3/Quarantine | Destroyed Quarantine Guard 37677 | -3/Quarantine | Spotted Quarantine Guard 37702 | -3/Quarantine | Destroyed Quarantine Guard 37788 | -3/Quarantine | Destroyed Quarantine Guard 37854 | -3/Quarantine | Spotted Quarantine Guard 37864 | -3/Quarantine | Destroyed Quarantine Guard 37871 | -3/Quarantine | Spotted Quarantine Guard 37876 | -3/Quarantine | Destroyed Quarantine Guard 37941 | -3/Quarantine | Spotted Quarantine Guard 37958 | -3/Quarantine | Destroyed Quarantine Guard 37964 | -3/Quarantine | Spotted Quarantine Guard 37975 | -3/Quarantine | Destroyed Quarantine Guard 38091 | -3/Quarantine | Spotted Quarantine Guard 38098 | -3/Quarantine | Destroyed Quarantine Guard 38178 | -3/Quarantine | Discovered new exit (range 8) 38178 | -3/Quarantine | Spotted Quarantine Guard 38194 | -3/Quarantine | Destroyed Quarantine Guard 38283 | -3/Quarantine | Entered Research 38283 | -2/Research | Warlord forces began assault on 0b10 38283 | -2/Research | Evolved 2 slots: Weapon x2 38393 | -2/Research | Research machine network offline 38461 | -2/Research | Found Quantum Capacitor 38514 | -2/Research | Found Prototype Device 38514 | -2/Research | Identified Thermal Barrier 38568 | -2/Research | Met up with Warlord 38809 | -2/Research | Borebot progress halted 38943 | -2/Research | Discovered new exit (range 84) 39024 | -2/Research | Found Prototype Processor 39024 | -2/Research | Identified Exp. Signal Interpreter 39045 | -2/Research | Build established: Mutant 39092 | -2/Research | Warlord destroyed during the assault 39262 | -2/Research | Identified exit to Access 39695 | -2/Research | Discovered exit to Access (range 22) 39824 | -2/Research | Discovered exit to Access (range 22) 39843 | -2/Research | Discovered new exit (range 21) 39879 | -2/Research | Identified exit to Testing 39891 | -2/Research | Entered Testing 39944 | -2/Testing | Found Prototype Energy Gun 39944 | -2/Testing | Identified Tachyon Dispersion Ray 40058 | -2/Testing | Found Hvy. Reflective Plating 40086 | -2/Testing | Spotted PX-QPURI87IXG 40106 | -2/Testing | Destroyed PX-QPURI87IXG 40162 | -2/Testing | Found Prototype Processor 40162 | -2/Testing | Identified Spectral Analyzer 40215 | -2/Testing | Found Prototype Protection 40215 | -2/Testing | Identified SHELL Armor 40250 | -2/Testing | Spotted Striker 40373 | -2/Testing | Found Prototype Processor 40373 | -2/Testing | Identified Exp. Core Analyzer 40493 | -2/Testing | Found Prototype Energy Cannon 40568 | -2/Testing | Discovered exit to Access (range 24) 40577 | -2/Testing | Found Prototype Ballistic Gun 40584 | -2/Testing | Identified Hyp. Multirail 40681 | -2/Testing | First assault squad dispatched 40682 | -2/Testing | Identified Transdimensional Reconstructor 40682 | -2/Testing | Warped through subspace 40707 | -2/Testing | Found Prototype Processor 40707 | -2/Testing | Identified Exp. Melee Analysis Suite 40930 | -2/Testing | Identified Core Stripper 41199 | -2/Testing | Build established: Hacker-Mutant 41247 | -2/Testing | Spotted Fortress 41262 | -2/Testing | Destroyed Fortress 41283 | -2/Testing | Found Vortex Chain Reactor 41289 | -2/Testing | Found Vortex Chain Reactor 41292 | -2/Testing | Found Prototype Device 41292 | -2/Testing | Identified EM Dispersion Field 41296 | -2/Testing | Found Prototype Device 41296 | -2/Testing | Identified Exp. Force Field 41399 | -2/Testing | Discovered new exit (range 5) 41414 | -2/Testing | Entered Section 7 41498 | -2/Section 7 | Found Alien Artifact 41498 | -2/Section 7 | Identified Spacefold Activator 41619 | -2/Section 7 | Destroyed 9 combat bots 41679 | -2/Section 7 | Found Alien Artifact 41679 | -2/Section 7 | Identified Core Reset Matrix 41679 | -2/Section 7 | Used Core Reset Matrix 41683 | -2/Section 7 | Sensed 18 artifacts in vicinity 42007 | -2/Section 7 | Found Integrated Dissipator 42007 | -2/Section 7 | Installed Integrated Dissipator, increased core heat dissipation (+20) 42036 | -2/Section 7 | Discovered exit to Access (range 20) 42094 | -2/Section 7 | Spotted S7 Guard 42120 | -2/Section 7 | Garrison activated, responded to threat 42125 | -2/Section 7 | Identified Vortex Catalyst Activator 42132 | -2/Section 7 | Destroyed S7 Guard 42164 | -2/Section 7 | First assault squad dispatched 42184 | -2/Section 7 | Spotted B-90 Cyclops 42185 | -2/Section 7 | Found Integrated Singularity Reactor 42193 | -2/Section 7 | Destroyed 9 combat bots 42257 | -2/Section 7 | Crushed by falling debris 42264 | -2/Section 7 | Crushed by falling debris 42288 | -2/Section 7 | Found Core Expander 42288 | -2/Section 7 | Installed Core Expander, added new Weapon slot 42344 | -2/Section 7 | Found LRC Matter Compressor 42344 | -2/Section 7 | Installed LRC Matter Compressor, increased matter storage capacity (+125) 42406 | -2/Section 7 | Found Core Reset Matrix 42423 | -2/Section 7 | Used Subatomic Replicator to replicate Integrated Singularity Reactor 42424 | -2/Section 7 | Installed Integrated Singularity Reactor, increased core energy generation (+20) 42470 | -2/Section 7 | Installed Integrated Singularity Reactor, increased core energy generation (+20) 42485 | -2/Section 7 | Sensed 13 artifacts in vicinity 42509 | -2/Section 7 | Identified Imp. Potential Cannon 42627 | -2/Section 7 | Found Matter Drive 42641 | -2/Section 7 | Found Matter Drive 42651 | -2/Section 7 | Found Transdimensional Reconstructor 42654 | -2/Section 7 | Found Hpw. Transdimensional Reconstructor 42913 | -2/Section 7 | Crushed by falling debris 42983 | -2/Section 7 | Crushed by falling debris 43002 | -2/Section 7 | Crushed by falling debris 43005 | -2/Section 7 | Crushed by falling debris 43006 | -2/Section 7 | System corruption reached 10% 43026 | -2/Section 7 | Crushed by falling debris 43039 | -2/Section 7 | Warped through subspace 43104 | -2/Section 7 | Discovered exit to Access (range 16) 43130 | -2/Section 7 | Entered Access 43130 | -1/Access | Evolved 2 slots: Utility x2 43195 | -1/Access | Build established: Alien-Mutant 43324 | -1/Access | Energy Cycler disabled 43630 | -1/Access | First assault squad dispatched 43680 | -1/Access | Crushed by falling debris 43689 | -1/Access | Crushed by falling debris 43690 | -1/Access | System corruption reached 10% 43720 | -1/Access | Lost 3 parts (3u) 43760 | -1/Access | Spotted B-99 Colossus 44839 | -1/Access | Destroyed 9 combat bots 44958 | -1/Access | Discovered new exit (range 5) 45007 | *** | Heading to fleet! Last Messages --------------- 44960_ U-05 Engineer builds a Wall. 44966_ Connecting with Terminal... 44969_ U-05 Engineer builds a Wall. 44972_ HV Slug penetrates Y-72 Warden. 44972_ Y-72 Warden suffers critical hit (Destroy). 44972_ Y-72 Warden destroyed. 44972_ HV Slug penetrates Door. 44974_ U-05 Engineer builds a Wall. 44978_ K-01 Serf collects debris. 44978_ HV Slug penetrates P-80 Master. 44978_ P-80 Master suffers critical hit (Destroy). 44978_ P-80 Master destroyed. 44978_ K-01 Serf suffers critical hit (Destroy). 44978_ K-01 Serf destroyed. 44978_ HV Slug penetrates Wall. 44979_ U-05 Engineer builds a Wall. 44981_ System corrupted: Heat flow error (+210). 44983_ Ended siege mode. 44984_ U-05 Engineer builds a Door. 44997_ System corrupted: Matter fused (-5). Map ----- +----------------------------------------------------+ | ?????????????? """"" # # "" ### ###### | | ????????????????"""" # # "" ## ####### | | ????????????????"""" # # # ######## | | ?????????????? """"" # # "###### | | ???????????????""""" # # " | | ????????????? ? # ############""###### | | ?????????????? ? + ############## ######## | | ???????????????? # ############### ####### | | ????????????? ? # ################ ###### | | ???????????????######## ################# ##### | | ????????????????#### ############### #### | | ?????????????????### ################ ### | | ???????????????? ### #################### | | ?????????????????### #################### | | ?????????????????### #################### | | ????????????????"?## #################### | | ???????????????????# #################### | | ???????????????????#""""""""""#################### | | ????????????????????""""""""""#################### | | ?????????????????????"""""""""#################### | | ???????????????????#""""""""""#################### | | ???????????????????# #################### | | ???????????????????# #################### | | ???????????????????# #################### | | ???????????????????# "" #################### | | ???????????????????# "@ ### # | | ???????????????????# ### ####? | | ???????????????????# #?# #???? | | ???????????????????# #?#[ #???# | | ??????????????????## ### #???? | | ??????????????????# ## ! #???# | | ??????????????????##"" ### #???# | | ???????????????????#"" ### #???# | | ???????????????????#"" ##" = #???# | | ???????????????????#T ###= #???? | | ???????????????????#"" #?# #???? | | ??????##???????????#"" ### #?#?? | | ??????# !![#########"" ###""""############# | | ??????+ %=*%!! u | | ??????# !%=!= | | ??????# #######"""######;"#############+####### | | ?????????????????##"##????####?????????? ????? | | ?????????????????? ????????????????? [ ??? | | ????????????????? ????????????????# #?? | | ???????????????? ???????????????# #?? | | ??????????????? "???????????????# #?? | | ?????????????? ""??????????????# #?? | | ?????????????"" ""??????????????# #?? | | ?????????????" G#?????????????# #?? | | ????????????? ""??????????????###########?? | +----------------------------------------------------+ Best States ------------- Heat Dissipation 106 Coolant Potential 100 Energy Generation 105 Energy Capacity 1200 Matter Stores 925 Matter Capacity 925 Sight Range 24 Robot Scan Range 14 Terrain Scan Range 24 Terrain Scan Density 1010 Additional Mass Support 12 Armor Coverage 2100 Resistance: KI 25 Resistance: TH 50 Resistance: EM 75 Core Shielding 20 Propulsion Shielding 66 Utility Shielding 66 Weapon Shielding 90 Reclamation Efficiency 20 Weapon Cycling 30 Phase Shifting 15 Evasion (%) 70 Targeting Accuracy 16 Target Analysis 8 Recoil Reduction 6 Matter Filtering 50 Particle Charging 25 Offensive Hacking 40 Defensive Hacking 36 Item Schematics ----------------- None Robot Schematics ------------------ None Fabricated ------------ Imp. Utility Shielding | x2 | -7/Factory Imp. Utility Shielding | x2 | -7/Factory Centrium Heavy Treads | x1 | -4/Factory Assault Drone Bay | x1 | -3/Research Assault Drone Bay | x1 | -3/Research Alien Tech Used ----------------- Integrated Reactor Matter Drive Subatomic Replicator Transdimensional Reconstructor Core Stripper Spacefold Activator Core Reset Matrix Integrated Dissipator Core Expander LRC Matter Compressor Integrated Singularity Reactor Achievements -------------- None Challenges ------------ None Game ------ Seed CompositeAntigravWings Manual? 0 Play Time 04:03:07 Cumulative 2131.1 hours Start 2021.08.17 @ 23:16:07 End 2021.08.18 @ 05:27:30 Sessions 3 Manual Loads 0 Difficulty Rogue Special Mode None Game No. 2651 Rogue 2643 Adventurer 0 Explorer 8 Win Type 2 Total 240 Types 45/31/90/3/3/5/60/2/1 Lore% 100 Gallery% 99 Achievement% 100 Wizard Run 0 Options --------- ASCII 0 Keyboard 1 Movement Vi Keybinds 1 Fullscreen 1 Font 18/SmallcapsGlow Map View 76x50 Tactical HUD 1 Map Filters NONE Filters NONE Steam 1 RUN: ab053ee3-6812-4aa3-9b2e-4507ef252cf1